Workbook

Sheet Entête
C12: Facilitateur URE de Wallonie
C14: Outil
C15: Modèle de cadastre énergétique

Sheet Révisions (hidden)
B2: REVISIONS
B3: Rév. | C3: Date | D3: Auteur | E3: Objet | F3: Pères
B4: 0 | C4: =Entête!C21 -> 00:00:00 | D4: JBV | E4: Création
B5: 1
B6: 2
B7: 3
B8: 4
B9: 5
B10: 6
B11: 7
B12: 8
B13: 9
B14: 10
B15: 11
B16: 12
B17: 13
B18: 14
B19: 15
B20: 16
B21: 17
B22: 18
B23: 19
B24: 20
B25: 21
B26: 22
B27: 23
B28: 24
B29: 25
B30: 26
B31: 27
B32: 28
B33: 29
B34: 30
B35: 31
B36: 32
B37: 33
B38: 34
B39: 35
B40: 36
B41: 37
B42: 38
B43: 39
B44: 40

Sheet ResumeBatiment (hidden)
A1: Batiment | B1: (Tous)
B3: Étiquettes de colonnes
A4: Valeurs | B4: 2010 | C4: 2011 | D4: 2012 | E4: 2013 | F4: 2014 | G4: 2015 | H4: 2016 | I4: 2017
A5: Somme de Electricité | B5: 318905.996 | C5: 312719.994 | D5: 317661.99 | E5: 316139.992 | F5: 0 | G5: 0 | H5: 0 | I5: 0
A6: Somme de Electricité Heures pleines | B6: 0 | C6: 0 | D6: 0 | E6: 0 | F6: 0 | G6: 0 | H6: 0 | I6: 0
A7: Somme de Electricité Heures creuses | B7: 0 | C7: 0 | D7: 0 | E7: 0 | F7: 0 | G7: 0 | H7: 0 | I7: 0
A8: Somme de Cons spéc d'électricité | B8: 244.0846846 | C8: 239.3500376 | D8: 243.132548 | E8: 241.9676377 | F8: 0 | G8: 0 | H8: 0 | I8: 0
A9: Somme de Cons spéc d'électricité moy du secteur | B9: 100 | C9: 100 | D9: 100 | E9: 100 | F9: 100 | G9: 100 | H9: 100 | I9: 100
A10: Somme de Combustible | B10: 1864875.6 | C10: 1631164.21 | D10: 1787578.8 | E10: 1796355.96 | F10: 0 | G10: 0 | H10: 0 | I10: 0

Sheet Encodage
A1: Encodage des données et des factures
A3: Année du 1er encodage: | D3: 2013
A4: Choix de degrés jours: | D4: 16,5/16,5
A5: Secteur général: | D5: à encoder
A6: Nombre de bâtiments: | D6: 12
B8: Aller à ---> | C8: =A13 -> 2013 | D8: =C8+1 -> 2014 | E8: 2015 | F8: 2016 | G8: 2017 | H8: 2018 | I8: =H8+1 -> 2019 | J8: =I8+1 -> 2020
C10: Surface chauffée | D10: Affectation du bâtiment | E10: Horaires d'occupation du bâtiment | F10: Electricité (monhoraire) | G10: Electricité Heures pleines | H10: Electricité Heures creuses | I10: Usage énergétique spécifique | J10: Energies renouvelables | K10: =Paramètres!$F$3 -> gaz naturel | L10: =Paramètres!$F$4 -> gasoil | M10: =Paramètres!$F$5 -> propane | N10: =Paramètres!$F$6 -> colza | O10: =Paramètres!$F$7 -> pellets | P10: =Paramètres!$F$8 -> Autres | Q10: Eau | R10: Evol conso Eau par rapport année précédente | S10: Electricité (total) | T10: Evol conso Elec par rapport année précédente | U10: Cons spéc d'électricité | V10: Cons spéc d'électricité moy du secteur | W10: Combustible (total) | X10: % de normali -sation | Y10: Combustible (total) normalisé | Z10: Cons spéc normalisée de combustible par rapport à l'année précédente | AA10: Cons spéc normalisée de combustible | AB10: Cons spéc chauffage moy du secteur | AC10: Cons spéc normalisée de combustible en % de l'année de réf | AD10: Potentiel d'économie de combustible
B11: Nom du bâtiment | C11: m² | F11: kWh | G11: kWh | H11: kWh | K11: =Paramètres!$G$3 -> kWh | L11: =Paramètres!$G$4 -> litre | M11: =Paramètres!$G$5 -> m³ | N11: =Paramètres!$G$6 -> litre | O11: =Paramètres!$G$7 -> kg | P11: =Paramètres!$G$8 -> kWh | Q11: m³ | R11: % | S11: kWh | T11: % | U11: kWh/m² | V11: kWh/m² | W11: kWh | Y11: kWh | Z11: % | AA11: kWh/m² | AB11: kWhp/m² | AC11: % | AD11: kWh²/m²
B12: Pour visualiser un bâtiment sur plusieurs années : sélectionner-le avec la flèche -->
A13: =D3 -> 2013
A14: Année | B14: Batiment | C14: 3 | D14: 4 | E14: 5 | F14: 7 | G14: =G10 -> Electricité Heures pleines | H14: =H10 -> Electricité Heures creuses | I14: 10 | J14: =J10 -> Energies renouvelables | K14: 11 | L14: 12 | M14: 13 | N14: 14 | O14: 15 | P14: 16 | Q14: 17 | R14: 18 | S14: =S10 -> Electricité (total) | T14: 21 | U14: Cons spéc d'électricité | V14: Cons spéc d'électricité moy du secteur | W14: Combustible (total) | Y14: Combustible (total) normalisé | Z14: 22 | AA14: Cons spéc normalisée de combustible | AB14: Cons spéc chauffage moy du secteur | AC14: Cons spéc normalisée de combustible en % de l'année de réf | AD14: =AD10 -> Potentiel d'économie de combustible
A15: =A13 -> 2013 | B15: Batiment 1 | D15: A sélectionner dans la liste déroulante | I15: à encoder | J15: à encoder | R15: =IFERROR(1-Q15/Q15,0) -> 0 | S15: =IF(F15<>0,F15,G15+H15) -> 0 | T15: =IF(S15=0,0,S15/S15-1) -> 0 | U15: =S15/C15 ->  | V15: =VLOOKUP(D15,Paramètres!$A$15:$D$26,3) -> 0 | W15: =K15*Paramètres!$H$3+L15*Paramètres!$H$4+Encodage!M15*Paramètres!$H$5+Encodage!N15*Paramètres!$H$6+Encodage!O15*Paramètres!$H$7+P15*Paramètres!$H$8 -> 0 | X15: =VLOOKUP(D15,Paramètres!$A$15:$E$26,5) -> 1 | Y15: =W15*(1-X15)+(W15*X15*Paramètres!$D$3/VLOOKUP(Encodage!A15,Paramètres!$A$2:$D$15,4)) -> 0 | Z15: =IF(Y15=0,0,Y15/Y15-1) -> 0 | AA15: =Y15/C15 ->  | AB15: =VLOOKUP(D15,Paramètres!$A$15:$D$26,2) -> 0 | AC15: =AA15/AA$15 ->  | AD15: =Y15*AA15 -> 
A16: =A13 -> 2013 | B16: Batiment 2 | D16: A sélectionner dans la liste déroulante | I16: à encoder | J16: à encoder | R16: =IFERROR(Q16/Q16-1,0) -> 0 | S16: 0 | T16: =IF(S16=0,0,S16/S16-1) -> 0 | V16: =VLOOKUP(D16,Paramètres!$A$15:$D$26,3) -> 0 | W16: =K16*Paramètres!$H$3+L16*Paramètres!$H$4+Encodage!M16*Paramètres!$H$5+Encodage!N16*Paramètres!$H$6+Encodage!O16*Paramètres!$H$7+P16*Paramètres!$H$8 -> 0 | X16: =VLOOKUP(D16,Paramètres!$A$15:$E$26,5) -> 1 | Y16: =W16*(1-X16)+(W16*X16*Paramètres!$D$3/VLOOKUP(Encodage!A16,Paramètres!$A$2:$D$15,4)) -> 0 | Z16: =IF(Y16=0,0,Y16/Y16-1) -> 0 | AB16: =VLOOKUP(D16,Paramètres!$A$15:$D$26,2) -> 0 | AC16: =AA16/AA$16 -> 
A17: =A16 -> 2013 | B17: Batiment 3 | D17: A sélectionner dans la liste déroulante | I17: à encoder | J17: à encoder | R17: 0 | S17: 0 | T17: 0 | V17: =VLOOKUP(D17,Paramètres!$A$15:$D$26,3) -> 0 | W17: =K17*Paramètres!$H$3+L17*Paramètres!$H$4+Encodage!M17*Paramètres!$H$5+Encodage!N17*Paramètres!$H$6+Encodage!O17*Paramètres!$H$7+P17*Paramètres!$H$8 -> 0 | X17: =VLOOKUP(D17,Paramètres!$A$15:$E$26,5) -> 1 | Y17: =W17*(1-X17)+(W17*X17*Paramètres!$D$3/VLOOKUP(Encodage!A17,Paramètres!$A$2:$D$15,4)) -> 0 | Z17: 0 | AB17: =VLOOKUP(D17,Paramètres!$A$15:$D$26,2) -> 0 | AC17: =AA17/AA$17 -> 
A18: 2013 | B18: Batiment 4 | D18: A sélectionner dans la liste déroulante | I18: à encoder | J18: à encoder | R18: 0 | S18: 0 | T18: 0 | V18: =VLOOKUP(D18,Paramètres!$A$15:$D$26,3) -> 0 | W18: =K18*Paramètres!$H$3+L18*Paramètres!$H$4+Encodage!M18*Paramètres!$H$5+Encodage!N18*Paramètres!$H$6+Encodage!O18*Paramètres!$H$7+P18*Paramètres!$H$8 -> 0 | X18: =VLOOKUP(D18,Paramètres!$A$15:$E$26,5) -> 1 | Y18: =W18*(1-X18)+(W18*X18*Paramètres!$D$3/VLOOKUP(Encodage!A18,Paramètres!$A$2:$D$15,4)) -> 0 | Z18: 0 | AB18: =VLOOKUP(D18,Paramètres!$A$15:$D$26,2) -> 0 | AC18: =AA18/AA$18 -> 
A19: 2013 | B19: Batiment 5 | D19: A sélectionner dans la liste déroulante | I19: à encoder | J19: à encoder | R19: 0 | S19: 0 | T19: 0 | V19: =VLOOKUP(D19,Paramètres!$A$15:$D$26,3) -> 0 | W19: =K19*Paramètres!$H$3+L19*Paramètres!$H$4+Encodage!M19*Paramètres!$H$5+Encodage!N19*Paramètres!$H$6+Encodage!O19*Paramètres!$H$7+P19*Paramètres!$H$8 -> 0 | X19: =VLOOKUP(D19,Paramètres!$A$15:$E$26,5) -> 1 | Y19: =W19*(1-X19)+(W19*X19*Paramètres!$D$3/VLOOKUP(Encodage!A19,Paramètres!$A$2:$D$15,4)) -> 0 | Z19: 0 | AB19: =VLOOKUP(D19,Paramètres!$A$15:$D$26,2) -> 0 | AC19: =AA19/AA$19 -> 
A20: 2013 | B20: Batiment 6 | D20: A sélectionner dans la liste déroulante | I20: à encoder | J20: à encoder | R20: 0 | S20: 0 | T20: 0 | V20: =VLOOKUP(D20,Paramètres!$A$15:$D$26,3) -> 0 | W20: =K20*Paramètres!$H$3+L20*Paramètres!$H$4+Encodage!M20*Paramètres!$H$5+Encodage!N20*Paramètres!$H$6+Encodage!O20*Paramètres!$H$7+P20*Paramètres!$H$8 -> 0 | X20: =VLOOKUP(D20,Paramètres!$A$15:$E$26,5) -> 1 | Y20: =W20*(1-X20)+(W20*X20*Paramètres!$D$3/VLOOKUP(Encodage!A20,Paramètres!$A$2:$D$15,4)) -> 0 | Z20: 0 | AB20: =VLOOKUP(D20,Paramètres!$A$15:$D$26,2) -> 0 | AC20: =AA20/AA$20 -> 
A21: 2013 | B21: Batiment 7 | D21: A sélectionner dans la liste déroulante | I21: à encoder | J21: à encoder | R21: 0 | S21: 0 | T21: 0 | V21: =VLOOKUP(D21,Paramètres!$A$15:$D$26,3) -> 0 | W21: =K21*Paramètres!$H$3+L21*Paramètres!$H$4+Encodage!M21*Paramètres!$H$5+Encodage!N21*Paramètres!$H$6+Encodage!O21*Paramètres!$H$7+P21*Paramètres!$H$8 -> 0 | X21: =VLOOKUP(D21,Paramètres!$A$15:$E$26,5) -> 1 | Y21: =W21*(1-X21)+(W21*X21*Paramètres!$D$3/VLOOKUP(Encodage!A21,Paramètres!$A$2:$D$15,4)) -> 0 | Z21: 0 | AB21: =VLOOKUP(D21,Paramètres!$A$15:$D$26,2) -> 0 | AC21: =AA21/AA$21 -> 
A22: 2013 | B22: Batiment 8 | D22: A sélectionner dans la liste déroulante | I22: à encoder | J22: à encoder | R22: 0 | S22: 0 | T22: 0 | V22: =VLOOKUP(D22,Paramètres!$A$15:$D$26,3) -> 0 | W22: =K22*Paramètres!$H$3+L22*Paramètres!$H$4+Encodage!M22*Paramètres!$H$5+Encodage!N22*Paramètres!$H$6+Encodage!O22*Paramètres!$H$7+P22*Paramètres!$H$8 -> 0 | X22: =VLOOKUP(D22,Paramètres!$A$15:$E$26,5) -> 1 | Y22: =W22*(1-X22)+(W22*X22*Paramètres!$D$3/VLOOKUP(Encodage!A22,Paramètres!$A$2:$D$15,4)) -> 0 | Z22: 0 | AB22: =VLOOKUP(D22,Paramètres!$A$15:$D$26,2) -> 0 | AC22: =AA22/AA$22 -> 
A23: 2013 | B23: Batiment 9 | D23: A sélectionner dans la liste déroulante | I23: à encoder | J23: à encoder | R23: 0 | S23: 0 | T23: 0 | V23: =VLOOKUP(D23,Paramètres!$A$15:$D$26,3) -> 0 | W23: =K23*Paramètres!$H$3+L23*Paramètres!$H$4+Encodage!M23*Paramètres!$H$5+Encodage!N23*Paramètres!$H$6+Encodage!O23*Paramètres!$H$7+P23*Paramètres!$H$8 -> 0 | X23: =VLOOKUP(D23,Paramètres!$A$15:$E$26,5) -> 1 | Y23: =W23*(1-X23)+(W23*X23*Paramètres!$D$3/VLOOKUP(Encodage!A23,Paramètres!$A$2:$D$15,4)) -> 0 | Z23: 0 | AB23: =VLOOKUP(D23,Paramètres!$A$15:$D$26,2) -> 0 | AC23: =AA23/AA$23 -> 
A24: 2013 | B24: Batiment 10 | D24: A sélectionner dans la liste déroulante | I24: à encoder | J24: à encoder | R24: 0 | S24: 0 | T24: 0 | V24: =VLOOKUP(D24,Paramètres!$A$15:$D$26,3) -> 0 | W24: =K24*Paramètres!$H$3+L24*Paramètres!$H$4+Encodage!M24*Paramètres!$H$5+Encodage!N24*Paramètres!$H$6+Encodage!O24*Paramètres!$H$7+P24*Paramètres!$H$8 -> 0 | X24: =VLOOKUP(D24,Paramètres!$A$15:$E$26,5) -> 1 | Y24: =W24*(1-X24)+(W24*X24*Paramètres!$D$3/VLOOKUP(Encodage!A24,Paramètres!$A$2:$D$15,4)) -> 0 | Z24: 0 | AB24: =VLOOKUP(D24,Paramètres!$A$15:$D$26,2) -> 0 | AC24: =AA24/AA$24 -> 
A25: 2013 | B25: Batiment 11 | D25: A sélectionner dans la liste déroulante | I25: à encoder | J25: à encoder | R25: 0 | S25: 0 | T25: 0 | V25: =VLOOKUP(D25,Paramètres!$A$15:$D$26,3) -> 0 | W25: =K25*Paramètres!$H$3+L25*Paramètres!$H$4+Encodage!M25*Paramètres!$H$5+Encodage!N25*Paramètres!$H$6+Encodage!O25*Paramètres!$H$7+P25*Paramètres!$H$8 -> 0 | X25: =VLOOKUP(D25,Paramètres!$A$15:$E$26,5) -> 1 | Y25: =W25*(1-X25)+(W25*X25*Paramètres!$D$3/VLOOKUP(Encodage!A25,Paramètres!$A$2:$D$15,4)) -> 0 | Z25: 0 | AB25: =VLOOKUP(D25,Paramètres!$A$15:$D$26,2) -> 0 | AC25: =AA25/AA$25 -> 
A26: 2013 | B26: Batiment 12 | D26: A sélectionner dans la liste déroulante | I26: à encoder | J26: à encoder | R26: 0 | S26: 0 | T26: 0 | V26: =VLOOKUP(D26,Paramètres!$A$15:$D$26,3) -> 0 | W26: =K26*Paramètres!$H$3+L26*Paramètres!$H$4+Encodage!M26*Paramètres!$H$5+Encodage!N26*Paramètres!$H$6+Encodage!O26*Paramètres!$H$7+P26*Paramètres!$H$8 -> 0 | X26: =VLOOKUP(D26,Paramètres!$A$15:$E$26,5) -> 1 | Y26: =W26*(1-X26)+(W26*X26*Paramètres!$D$3/VLOOKUP(Encodage!A26,Paramètres!$A$2:$D$15,4)) -> 0 | Z26: 0 | AB26: =VLOOKUP(D26,Paramètres!$A$15:$D$26,2) -> 0 | AC26: =AA26/AA$26 -> 
A27: 2013 | B27: Total | C27: =SUM(C15:C26) -> 0 | F27: =SUM(F15:F26) -> 0 | G27: =SUM(G15:G26) -> 0 | H27: 0 | K27: 0 | L27: 0 | M27: 0 | N27: 0 | O27: 0 | P27: 0 | Q27: =SUM(Q15:Q26) -> 0 | S27: =SUM(S15:S26) -> 0 | V27: =VLOOKUP($D$5,Paramètres!$A$15:$D$26,3) ->  | W27: =SUM(W15:W26) -> 0 | Y27: =SUM(Y15:Y26) -> 0 | AB27: =VLOOKUP($D$5,Paramètres!$A$15:$D$26,2) ->  | AC27: =AA27/AA$27 -> 
A29: =A13+1 -> 2014
A30: =A29 -> 2014 | B30: =B15 -> Batiment 1 | C30: 0 | D30: A sélectionner dans la liste déroulante | E30: 0 | I30: =I15 -> à encoder | J30: =J15 -> à encoder | R30: =IFERROR(Q30/Q15-1,0) -> 0 | S30: =IF(F30<>0,F30,G30+H30) -> 0 | T30: =IF(S30=0,0,S30/S15-1) -> 0 | U30: =S30/C30 ->  | V30: =VLOOKUP(D30,Paramètres!$A$15:$D$26,3) -> 0 | W30: =K30*Paramètres!$H$3+L30*Paramètres!$H$4+Encodage!M30*Paramètres!$H$5+Encodage!N30*Paramètres!$H$6+Encodage!O30*Paramètres!$H$7+P30*Paramètres!$H$8 -> 0 | X30: =VLOOKUP(D30,Paramètres!$A$15:$E$26,5) -> 1 | Y30: =W30*(1-X30)+(W30*X30*Paramètres!$D$3/VLOOKUP(Encodage!A30,Paramètres!$A$2:$D$15,4)) -> 0 | Z30: =IF(Y30=0,0,Y30/Y15-1) -> 0 | AA30: =Y30/C30 ->  | AB30: =VLOOKUP(D30,Paramètres!$A$15:$D$26,2) -> 0 | AC30: =AA30/AA$15 ->  | AD30: =Y30*AA30 -> 
A31: =A30 -> 2014 | B31: Batiment 2 | C31: 0 | D31: A sélectionner dans la liste déroulante | E31: 0 | I31: à encoder | J31: à encoder | R31: 0 | S31: 0 | T31: =IF(S31=0,0,S31/S16-1) -> 0 | V31: =VLOOKUP(D31,Paramètres!$A$15:$D$26,3) -> 0 | W31: =K31*Paramètres!$H$3+L31*Paramètres!$H$4+Encodage!M31*Paramètres!$H$5+Encodage!N31*Paramètres!$H$6+Encodage!O31*Paramètres!$H$7+P31*Paramètres!$H$8 -> 0 | X31: =VLOOKUP(D31,Paramètres!$A$15:$E$26,5) -> 1 | Y31: =W31*(1-X31)+(W31*X31*Paramètres!$D$3/VLOOKUP(Encodage!A31,Paramètres!$A$2:$D$15,4)) -> 0 | Z31: =IF(Y31=0,0,Y31/Y16-1) -> 0 | AB31: =VLOOKUP(D31,Paramètres!$A$15:$D$26,2) -> 0 | AC31: =AA31/AA$16 -> 
A32: =A31 -> 2014 | B32: Batiment 3 | C32: 0 | D32: A sélectionner dans la liste déroulante | E32: 0 | I32: à encoder | J32: à encoder | R32: 0 | S32: 0 | T32: 0 | V32: =VLOOKUP(D32,Paramètres!$A$15:$D$26,3) -> 0 | W32: =K32*Paramètres!$H$3+L32*Paramètres!$H$4+Encodage!M32*Paramètres!$H$5+Encodage!N32*Paramètres!$H$6+Encodage!O32*Paramètres!$H$7+P32*Paramètres!$H$8 -> 0 | X32: =VLOOKUP(D32,Paramètres!$A$15:$E$26,5) -> 1 | Y32: =W32*(1-X32)+(W32*X32*Paramètres!$D$3/VLOOKUP(Encodage!A32,Paramètres!$A$2:$D$15,4)) -> 0 | Z32: 0 | AB32: =VLOOKUP(D32,Paramètres!$A$15:$D$26,2) -> 0 | AC32: =AA32/AA$17 -> 
A33: 2014 | B33: Batiment 4 | C33: 0 | D33: A sélectionner dans la liste déroulante | E33: 0 | I33: à encoder | J33: à encoder | R33: 0 | S33: 0 | T33: 0 | V33: =VLOOKUP(D33,Paramètres!$A$15:$D$26,3) -> 0 | W33: =K33*Paramètres!$H$3+L33*Paramètres!$H$4+Encodage!M33*Paramètres!$H$5+Encodage!N33*Paramètres!$H$6+Encodage!O33*Paramètres!$H$7+P33*Paramètres!$H$8 -> 0 | X33: =VLOOKUP(D33,Paramètres!$A$15:$E$26,5) -> 1 | Y33: =W33*(1-X33)+(W33*X33*Paramètres!$D$3/VLOOKUP(Encodage!A33,Paramètres!$A$2:$D$15,4)) -> 0 | Z33: 0 | AB33: =VLOOKUP(D33,Paramètres!$A$15:$D$26,2) -> 0 | AC33: =AA33/AA$18 -> 
A34: 2014 | B34: Batiment 5 | C34: 0 | D34: A sélectionner dans la liste déroulante | E34: 0 | I34: à encoder | J34: à encoder | R34: 0 | S34: 0 | T34: 0 | V34: =VLOOKUP(D34,Paramètres!$A$15:$D$26,3) -> 0 | W34: =K34*Paramètres!$H$3+L34*Paramètres!$H$4+Encodage!M34*Paramètres!$H$5+Encodage!N34*Paramètres!$H$6+Encodage!O34*Paramètres!$H$7+P34*Paramètres!$H$8 -> 0 | X34: =VLOOKUP(D34,Paramètres!$A$15:$E$26,5) -> 1 | Y34: =W34*(1-X34)+(W34*X34*Paramètres!$D$3/VLOOKUP(Encodage!A34,Paramètres!$A$2:$D$15,4)) -> 0 | Z34: 0 | AB34: =VLOOKUP(D34,Paramètres!$A$15:$D$26,2) -> 0 | AC34: =AA34/AA$19 -> 
A35: 2014 | B35: Batiment 6 | C35: 0 | D35: A sélectionner dans la liste déroulante | E35: 0 | I35: à encoder | J35: à encoder | R35: 0 | S35: 0 | T35: 0 | V35: =VLOOKUP(D35,Paramètres!$A$15:$D$26,3) -> 0 | W35: =K35*Paramètres!$H$3+L35*Paramètres!$H$4+Encodage!M35*Paramètres!$H$5+Encodage!N35*Paramètres!$H$6+Encodage!O35*Paramètres!$H$7+P35*Paramètres!$H$8 -> 0 | X35: =VLOOKUP(D35,Paramètres!$A$15:$E$26,5) -> 1 | Y35: =W35*(1-X35)+(W35*X35*Paramètres!$D$3/VLOOKUP(Encodage!A35,Paramètres!$A$2:$D$15,4)) -> 0 | Z35: 0 | AB35: =VLOOKUP(D35,Paramètres!$A$15:$D$26,2) -> 0 | AC35: =AA35/AA$20 -> 
A36: 2014 | B36: Batiment 7 | C36: 0 | D36: A sélectionner dans la liste déroulante | E36: 0 | I36: à encoder | J36: à encoder | R36: 0 | S36: 0 | T36: 0 | V36: =VLOOKUP(D36,Paramètres!$A$15:$D$26,3) -> 0 | W36: =K36*Paramètres!$H$3+L36*Paramètres!$H$4+Encodage!M36*Paramètres!$H$5+Encodage!N36*Paramètres!$H$6+Encodage!O36*Paramètres!$H$7+P36*Paramètres!$H$8 -> 0 | X36: =VLOOKUP(D36,Paramètres!$A$15:$E$26,5) -> 1 | Y36: =W36*(1-X36)+(W36*X36*Paramètres!$D$3/VLOOKUP(Encodage!A36,Paramètres!$A$2:$D$15,4)) -> 0 | Z36: 0 | AB36: =VLOOKUP(D36,Paramètres!$A$15:$D$26,2) -> 0 | AC36: =AA36/AA$21 -> 
A37: 2014 | B37: Batiment 8 | C37: 0 | D37: A sélectionner dans la liste déroulante | E37: 0 | I37: à encoder | J37: à encoder | R37: 0 | S37: 0 | T37: 0 | V37: =VLOOKUP(D37,Paramètres!$A$15:$D$26,3) -> 0 | W37: =K37*Paramètres!$H$3+L37*Paramètres!$H$4+Encodage!M37*Paramètres!$H$5+Encodage!N37*Paramètres!$H$6+Encodage!O37*Paramètres!$H$7+P37*Paramètres!$H$8 -> 0 | X37: =VLOOKUP(D37,Paramètres!$A$15:$E$26,5) -> 1 | Y37: =W37*(1-X37)+(W37*X37*Paramètres!$D$3/VLOOKUP(Encodage!A37,Paramètres!$A$2:$D$15,4)) -> 0 | Z37: 0 | AB37: =VLOOKUP(D37,Paramètres!$A$15:$D$26,2) -> 0 | AC37: =AA37/AA$22 -> 
A38: 2014 | B38: Batiment 9 | C38: 0 | D38: A sélectionner dans la liste déroulante | E38: 0 | I38: à encoder | J38: à encoder | R38: 0 | S38: 0 | T38: 0 | V38: =VLOOKUP(D38,Paramètres!$A$15:$D$26,3) -> 0 | W38: =K38*Paramètres!$H$3+L38*Paramètres!$H$4+Encodage!M38*Paramètres!$H$5+Encodage!N38*Paramètres!$H$6+Encodage!O38*Paramètres!$H$7+P38*Paramètres!$H$8 -> 0 | X38: =VLOOKUP(D38,Paramètres!$A$15:$E$26,5) -> 1 | Y38: =W38*(1-X38)+(W38*X38*Paramètres!$D$3/VLOOKUP(Encodage!A38,Paramètres!$A$2:$D$15,4)) -> 0 | Z38: 0 | AB38: =VLOOKUP(D38,Paramètres!$A$15:$D$26,2) -> 0 | AC38: =AA38/AA$23 -> 
A39: 2014 | B39: Batiment 10 | C39: 0 | D39: A sélectionner dans la liste déroulante | E39: 0 | I39: à encoder | J39: à encoder | R39: 0 | S39: 0 | T39: 0 | V39: =VLOOKUP(D39,Paramètres!$A$15:$D$26,3) -> 0 | W39: =K39*Paramètres!$H$3+L39*Paramètres!$H$4+Encodage!M39*Paramètres!$H$5+Encodage!N39*Paramètres!$H$6+Encodage!O39*Paramètres!$H$7+P39*Paramètres!$H$8 -> 0 | X39: =VLOOKUP(D39,Paramètres!$A$15:$E$26,5) -> 1 | Y39: =W39*(1-X39)+(W39*X39*Paramètres!$D$3/VLOOKUP(Encodage!A39,Paramètres!$A$2:$D$15,4)) -> 0 | Z39: 0 | AB39: =VLOOKUP(D39,Paramètres!$A$15:$D$26,2) -> 0 | AC39: =AA39/AA$24 -> 
A40: 2014 | B40: Batiment 11 | C40: 0 | D40: A sélectionner dans la liste déroulante | E40: 0 | I40: à encoder | J40: à encoder | R40: 0 | S40: 0 | T40: 0 | V40: =VLOOKUP(D40,Paramètres!$A$15:$D$26,3) -> 0 | W40: =K40*Paramètres!$H$3+L40*Paramètres!$H$4+Encodage!M40*Paramètres!$H$5+Encodage!N40*Paramètres!$H$6+Encodage!O40*Paramètres!$H$7+P40*Paramètres!$H$8 -> 0 | X40: =VLOOKUP(D40,Paramètres!$A$15:$E$26,5) -> 1 | Y40: =W40*(1-X40)+(W40*X40*Paramètres!$D$3/VLOOKUP(Encodage!A40,Paramètres!$A$2:$D$15,4)) -> 0 | Z40: 0 | AB40: =VLOOKUP(D40,Paramètres!$A$15:$D$26,2) -> 0 | AC40: =AA40/AA$25 -> 
A41: 2014 | B41: Batiment 12 | C41: 0 | D41: A sélectionner dans la liste déroulante | E41: 0 | I41: à encoder | J41: à encoder | R41: 0 | S41: 0 | T41: 0 | V41: =VLOOKUP(D41,Paramètres!$A$15:$D$26,3) -> 0 | W41: =K41*Paramètres!$H$3+L41*Paramètres!$H$4+Encodage!M41*Paramètres!$H$5+Encodage!N41*Paramètres!$H$6+Encodage!O41*Paramètres!$H$7+P41*Paramètres!$H$8 -> 0 | X41: =VLOOKUP(D41,Paramètres!$A$15:$E$26,5) -> 1 | Y41: =W41*(1-X41)+(W41*X41*Paramètres!$D$3/VLOOKUP(Encodage!A41,Paramètres!$A$2:$D$15,4)) -> 0 | Z41: 0 | AB41: =VLOOKUP(D41,Paramètres!$A$15:$D$26,2) -> 0 | AC41: =AA41/AA$26 -> 
A42: 2014 | B42: Total | C42: =SUM(C30:C41) -> 0 | F42: =SUM(F30:F41) -> 0 | G42: =SUM(G30:G41) -> 0 | H42: 0 | K42: 0 | L42: 0 | M42: 0 | N42: 0 | O42: 0 | P42: 0 | Q42: =SUM(Q30:Q41) -> 0 | S42: =SUM(S30:S41) -> 0 | V42: =VLOOKUP($D$5,Paramètres!$A$15:$D$26,3) ->  | W42: =SUM(W30:W41) -> 0 | Y42: =SUM(Y30:Y41) -> 0 | AB42: =VLOOKUP($D$5,Paramètres!$A$15:$D$26,2) ->  | AC42: =AA42/AA$27 -> 
A44: =A29+1 -> 2015
A45: =A44 -> 2015 | B45: =B30 -> Batiment 1 | C45: 0 | D45: A sélectionner dans la liste déroulante | E45: 0 | I45: =I30 -> à encoder | J45: =J30 -> à encoder | R45: =IFERROR(Q45/Q30-1,0) -> 0 | S45: =IF(F45<>0,F45,G45+H45) -> 0 | T45: =IF(S45=0,0,S45/S30-1) -> 0 | U45: =S45/C45 ->  | V45: =VLOOKUP(D45,Paramètres!$A$15:$D$26,3) -> 0 | W45: =K45*Paramètres!$H$3+L45*Paramètres!$H$4+Encodage!M45*Paramètres!$H$5+Encodage!N45*Paramètres!$H$6+Encodage!O45*Paramètres!$H$7+P45*Paramètres!$H$8 -> 0 | X45: =VLOOKUP(D45,Paramètres!$A$15:$E$26,5) -> 1 | Y45: =W45*(1-X45)+(W45*X45*Paramètres!$D$3/VLOOKUP(Encodage!A45,Paramètres!$A$2:$D$15,4)) ->  | Z45: =IF(Y45=0,0,Y45/Y30-1) ->  | AA45: =Y45/C45 ->  | AB45: =VLOOKUP(D45,Paramètres!$A$15:$D$26,2) -> 0 | AC45: =AA45/AA$15 ->  | AD45: =Y45*AA45 -> 
A46: =A45 -> 2015 | B46: Batiment 2 | C46: 0 | D46: A sélectionner dans la liste déroulante | E46: 0 | I46: à encoder | J46: à encoder | R46: 0 | S46: 0 | T46: =IF(S46=0,0,S46/S31-1) -> 0 | V46: =VLOOKUP(D46,Paramètres!$A$15:$D$26,3) -> 0 | W46: =K46*Paramètres!$H$3+L46*Paramètres!$H$4+Encodage!M46*Paramètres!$H$5+Encodage!N46*Paramètres!$H$6+Encodage!O46*Paramètres!$H$7+P46*Paramètres!$H$8 -> 0 | X46: =VLOOKUP(D46,Paramètres!$A$15:$E$26,5) -> 1 | Y46: =W46*(1-X46)+(W46*X46*Paramètres!$D$3/VLOOKUP(Encodage!A46,Paramètres!$A$2:$D$15,4)) ->  | Z46: =IF(Y46=0,0,Y46/Y31-1) ->  | AB46: =VLOOKUP(D46,Paramètres!$A$15:$D$26,2) -> 0 | AC46: =AA46/AA$16 -> 
A47: =A46 -> 2015 | B47: Batiment 3 | C47: 0 | D47: A sélectionner dans la liste déroulante | E47: 0 | I47: à encoder | J47: à encoder | R47: 0 | S47: 0 | T47: 0 | V47: =VLOOKUP(D47,Paramètres!$A$15:$D$26,3) -> 0 | W47: =K47*Paramètres!$H$3+L47*Paramètres!$H$4+Encodage!M47*Paramètres!$H$5+Encodage!N47*Paramètres!$H$6+Encodage!O47*Paramètres!$H$7+P47*Paramètres!$H$8 -> 0 | X47: =VLOOKUP(D47,Paramètres!$A$15:$E$26,5) -> 1 | Y47: =W47*(1-X47)+(W47*X47*Paramètres!$D$3/VLOOKUP(Encodage!A47,Paramètres!$A$2:$D$15,4)) ->  | AB47: =VLOOKUP(D47,Paramètres!$A$15:$D$26,2) -> 0 | AC47: =AA47/AA$17 -> 
A48: 2015 | B48: Batiment 4 | C48: 0 | D48: A sélectionner dans la liste déroulante | E48: 0 | I48: à encoder | J48: à encoder | R48: 0 | S48: 0 | T48: 0 | V48: =VLOOKUP(D48,Paramètres!$A$15:$D$26,3) -> 0 | W48: =K48*Paramètres!$H$3+L48*Paramètres!$H$4+Encodage!M48*Paramètres!$H$5+Encodage!N48*Paramètres!$H$6+Encodage!O48*Paramètres!$H$7+P48*Paramètres!$H$8 -> 0 | X48: =VLOOKUP(D48,Paramètres!$A$15:$E$26,5) -> 1 | Y48: =W48*(1-X48)+(W48*X48*Paramètres!$D$3/VLOOKUP(Encodage!A48,Paramètres!$A$2:$D$15,4)) ->  | AB48: =VLOOKUP(D48,Paramètres!$A$15:$D$26,2) -> 0 | AC48: =AA48/AA$18 -> 
A49: 2015 | B49: Batiment 5 | C49: 0 | D49: A sélectionner dans la liste déroulante | E49: 0 | I49: à encoder | J49: à encoder | R49: 0 | S49: 0 | T49: 0 | V49: =VLOOKUP(D49,Paramètres!$A$15:$D$26,3) -> 0 | W49: =K49*Paramètres!$H$3+L49*Paramètres!$H$4+Encodage!M49*Paramètres!$H$5+Encodage!N49*Paramètres!$H$6+Encodage!O49*Paramètres!$H$7+P49*Paramètres!$H$8 -> 0 | X49: =VLOOKUP(D49,Paramètres!$A$15:$E$26,5) -> 1 | Y49: =W49*(1-X49)+(W49*X49*Paramètres!$D$3/VLOOKUP(Encodage!A49,Paramètres!$A$2:$D$15,4)) ->  | AB49: =VLOOKUP(D49,Paramètres!$A$15:$D$26,2) -> 0 | AC49: =AA49/AA$19 -> 
A50: 2015 | B50: Batiment 6 | C50: 0 | D50: A sélectionner dans la liste déroulante | E50: 0 | I50: à encoder | J50: à encoder | R50: 0 | S50: 0 | T50: 0 | V50: =VLOOKUP(D50,Paramètres!$A$15:$D$26,3) -> 0 | W50: =K50*Paramètres!$H$3+L50*Paramètres!$H$4+Encodage!M50*Paramètres!$H$5+Encodage!N50*Paramètres!$H$6+Encodage!O50*Paramètres!$H$7+P50*Paramètres!$H$8 -> 0 | X50: =VLOOKUP(D50,Paramètres!$A$15:$E$26,5) -> 1 | Y50: =W50*(1-X50)+(W50*X50*Paramètres!$D$3/VLOOKUP(Encodage!A50,Paramètres!$A$2:$D$15,4)) ->  | AB50: =VLOOKUP(D50,Paramètres!$A$15:$D$26,2) -> 0 | AC50: =AA50/AA$20 -> 
A51: 2015 | B51: Batiment 7 | C51: 0 | D51: A sélectionner dans la liste déroulante | E51: 0 | I51: à encoder | J51: à encoder | R51: 0 | S51: 0 | T51: 0 | V51: =VLOOKUP(D51,Paramètres!$A$15:$D$26,3) -> 0 | W51: =K51*Paramètres!$H$3+L51*Paramètres!$H$4+Encodage!M51*Paramètres!$H$5+Encodage!N51*Paramètres!$H$6+Encodage!O51*Paramètres!$H$7+P51*Paramètres!$H$8 -> 0 | X51: =VLOOKUP(D51,Paramètres!$A$15:$E$26,5) -> 1 | Y51: =W51*(1-X51)+(W51*X51*Paramètres!$D$3/VLOOKUP(Encodage!A51,Paramètres!$A$2:$D$15,4)) ->  | AB51: =VLOOKUP(D51,Paramètres!$A$15:$D$26,2) -> 0 | AC51: =AA51/AA$21 -> 
A52: 2015 | B52: Batiment 8 | C52: 0 | D52: A sélectionner dans la liste déroulante | E52: 0 | I52: à encoder | J52: à encoder | R52: 0 | S52: 0 | T52: 0 | V52: =VLOOKUP(D52,Paramètres!$A$15:$D$26,3) -> 0 | W52: =K52*Paramètres!$H$3+L52*Paramètres!$H$4+Encodage!M52*Paramètres!$H$5+Encodage!N52*Paramètres!$H$6+Encodage!O52*Paramètres!$H$7+P52*Paramètres!$H$8 -> 0 | X52: =VLOOKUP(D52,Paramètres!$A$15:$E$26,5) -> 1 | Y52: =W52*(1-X52)+(W52*X52*Paramètres!$D$3/VLOOKUP(Encodage!A52,Paramètres!$A$2:$D$15,4)) ->  | AB52: =VLOOKUP(D52,Paramètres!$A$15:$D$26,2) -> 0 | AC52: =AA52/AA$22 -> 
A53: 2015 | B53: Batiment 9 | C53: 0 | D53: A sélectionner dans la liste déroulante | E53: 0 | I53: à encoder | J53: à encoder | R53: 0 | S53: 0 | T53: 0 | V53: =VLOOKUP(D53,Paramètres!$A$15:$D$26,3) -> 0 | W53: =K53*Paramètres!$H$3+L53*Paramètres!$H$4+Encodage!M53*Paramètres!$H$5+Encodage!N53*Paramètres!$H$6+Encodage!O53*Paramètres!$H$7+P53*Paramètres!$H$8 -> 0 | X53: =VLOOKUP(D53,Paramètres!$A$15:$E$26,5) -> 1 | Y53: =W53*(1-X53)+(W53*X53*Paramètres!$D$3/VLOOKUP(Encodage!A53,Paramètres!$A$2:$D$15,4)) ->  | AB53: =VLOOKUP(D53,Paramètres!$A$15:$D$26,2) -> 0 | AC53: =AA53/AA$23 -> 
A54: 2015 | B54: Batiment 10 | C54: 0 | D54: A sélectionner dans la liste déroulante | E54: 0 | I54: à encoder | J54: à encoder | R54: 0 | S54: 0 | T54: 0 | V54: =VLOOKUP(D54,Paramètres!$A$15:$D$26,3) -> 0 | W54: =K54*Paramètres!$H$3+L54*Paramètres!$H$4+Encodage!M54*Paramètres!$H$5+Encodage!N54*Paramètres!$H$6+Encodage!O54*Paramètres!$H$7+P54*Paramètres!$H$8 -> 0 | X54: =VLOOKUP(D54,Paramètres!$A$15:$E$26,5) -> 1 | Y54: =W54*(1-X54)+(W54*X54*Paramètres!$D$3/VLOOKUP(Encodage!A54,Paramètres!$A$2:$D$15,4)) ->  | AB54: =VLOOKUP(D54,Paramètres!$A$15:$D$26,2) -> 0 | AC54: =AA54/AA$24 -> 
A55: 2015 | B55: Batiment 11 | C55: 0 | D55: A sélectionner dans la liste déroulante | E55: 0 | I55: à encoder | J55: à encoder | R55: 0 | S55: 0 | T55: 0 | V55: =VLOOKUP(D55,Paramètres!$A$15:$D$26,3) -> 0 | W55: =K55*Paramètres!$H$3+L55*Paramètres!$H$4+Encodage!M55*Paramètres!$H$5+Encodage!N55*Paramètres!$H$6+Encodage!O55*Paramètres!$H$7+P55*Paramètres!$H$8 -> 0 | X55: =VLOOKUP(D55,Paramètres!$A$15:$E$26,5) -> 1 | Y55: =W55*(1-X55)+(W55*X55*Paramètres!$D$3/VLOOKUP(Encodage!A55,Paramètres!$A$2:$D$15,4)) ->  | AB55: =VLOOKUP(D55,Paramètres!$A$15:$D$26,2) -> 0 | AC55: =AA55/AA$25 -> 
A56: 2015 | B56: Batiment 12 | C56: 0 | D56: A sélectionner dans la liste déroulante | E56: 0 | I56: à encoder | J56: à encoder | R56: 0 | S56: 0 | T56: 0 | V56: =VLOOKUP(D56,Paramètres!$A$15:$D$26,3) -> 0 | W56: =K56*Paramètres!$H$3+L56*Paramètres!$H$4+Encodage!M56*Paramètres!$H$5+Encodage!N56*Paramètres!$H$6+Encodage!O56*Paramètres!$H$7+P56*Paramètres!$H$8 -> 0 | X56: =VLOOKUP(D56,Paramètres!$A$15:$E$26,5) -> 1 | Y56: =W56*(1-X56)+(W56*X56*Paramètres!$D$3/VLOOKUP(Encodage!A56,Paramètres!$A$2:$D$15,4)) ->  | AB56: =VLOOKUP(D56,Paramètres!$A$15:$D$26,2) -> 0 | AC56: =AA56/AA$26 -> 
A57: 2015 | B57: Total | C57: =SUM(C45:C56) -> 0 | F57: =SUM(F45:F56) -> 0 | G57: =SUM(G45:G56) -> 0 | H57: =SUM(H45:H56) -> 0 | K57: =SUM(K45:K56) -> 0 | L57: 0 | M57: 0 | N57: 0 | O57: 0 | P57: 0 | Q57: 0 | S57: =SUM(S45:S56) -> 0 | V57: =VLOOKUP($D$5,Paramètres!$A$15:$D$26,3) ->  | W57: =SUM(W45:W56) -> 0 | Y57: =SUM(Y45:Y56) ->  | AB57: =VLOOKUP($D$5,Paramètres!$A$15:$D$26,2) ->  | AC57: =AA57/AA$27 -> 
A59: =A44+1 -> 2016
A60: =A59 -> 2016 | B60: =B45 -> Batiment 1 | C60: 0 | D60: A sélectionner dans la liste déroulante | E60: 0 | I60: =I45 -> à encoder | J60: =J45 -> à encoder | R60: =IFERROR(Q60/Q45-1,0) -> 0 | S60: =IF(F60<>0,F60,G60+H60) -> 0 | T60: =IF(S60=0,0,S60/S45-1) -> 0 | U60: =S60/C60 ->  | V60: =VLOOKUP(D60,Paramètres!$A$15:$D$26,3) -> 0 | W60: =K60*Paramètres!$H$3+L60*Paramètres!$H$4+Encodage!M60*Paramètres!$H$5+Encodage!N60*Paramètres!$H$6+Encodage!O60*Paramètres!$H$7+P60*Paramètres!$H$8 -> 0 | X60: =VLOOKUP(D60,Paramètres!$A$15:$E$26,5) -> 1 | Y60: =W60*(1-X60)+(W60*X60*Paramètres!$D$3/VLOOKUP(Encodage!A60,Paramètres!$A$2:$D$15,4)) ->  | Z60: =IF(Y60=0,0,Y60/Y45-1) ->  | AA60: =Y60/C60 ->  | AB60: =VLOOKUP(D60,Paramètres!$A$15:$D$26,2) -> 0 | AC60: =AA60/AA$15 ->  | AD60: =Y60*AA60 -> 
A61: =A60 -> 2016 | B61: Batiment 2 | C61: 0 | D61: A sélectionner dans la liste déroulante | E61: 0 | I61: à encoder | J61: à encoder | R61: 0 | S61: 0 | T61: =IF(S61=0,0,S61/S46-1) -> 0 | V61: =VLOOKUP(D61,Paramètres!$A$15:$D$26,3) -> 0 | W61: =K61*Paramètres!$H$3+L61*Paramètres!$H$4+Encodage!M61*Paramètres!$H$5+Encodage!N61*Paramètres!$H$6+Encodage!O61*Paramètres!$H$7+P61*Paramètres!$H$8 -> 0 | X61: =VLOOKUP(D61,Paramètres!$A$15:$E$26,5) -> 1 | Y61: =W61*(1-X61)+(W61*X61*Paramètres!$D$3/VLOOKUP(Encodage!A61,Paramètres!$A$2:$D$15,4)) ->  | Z61: =IF(Y61=0,0,Y61/Y46-1) ->  | AB61: =VLOOKUP(D61,Paramètres!$A$15:$D$26,2) -> 0 | AC61: =AA61/AA$16 -> 
A62: =A61 -> 2016 | B62: Batiment 3 | C62: 0 | D62: A sélectionner dans la liste déroulante | E62: 0 | I62: à encoder | J62: à encoder | R62: 0 | S62: 0 | T62: 0 | V62: =VLOOKUP(D62,Paramètres!$A$15:$D$26,3) -> 0 | W62: =K62*Paramètres!$H$3+L62*Paramètres!$H$4+Encodage!M62*Paramètres!$H$5+Encodage!N62*Paramètres!$H$6+Encodage!O62*Paramètres!$H$7+P62*Paramètres!$H$8 -> 0 | X62: =VLOOKUP(D62,Paramètres!$A$15:$E$26,5) -> 1 | Y62: =W62*(1-X62)+(W62*X62*Paramètres!$D$3/VLOOKUP(Encodage!A62,Paramètres!$A$2:$D$15,4)) ->  | AB62: =VLOOKUP(D62,Paramètres!$A$15:$D$26,2) -> 0 | AC62: =AA62/AA$17 -> 
A63: 2016 | B63: Batiment 4 | C63: 0 | D63: A sélectionner dans la liste déroulante | E63: 0 | I63: à encoder | J63: à encoder | R63: 0 | S63: 0 | T63: 0 | V63: =VLOOKUP(D63,Paramètres!$A$15:$D$26,3) -> 0 | W63: =K63*Paramètres!$H$3+L63*Paramètres!$H$4+Encodage!M63*Paramètres!$H$5+Encodage!N63*Paramètres!$H$6+Encodage!O63*Paramètres!$H$7+P63*Paramètres!$H$8 -> 0 | X63: =VLOOKUP(D63,Paramètres!$A$15:$E$26,5) -> 1 | Y63: =W63*(1-X63)+(W63*X63*Paramètres!$D$3/VLOOKUP(Encodage!A63,Paramètres!$A$2:$D$15,4)) ->  | AB63: =VLOOKUP(D63,Paramètres!$A$15:$D$26,2) -> 0 | AC63: =AA63/AA$18 -> 
A64: 2016 | B64: Batiment 5 | C64: 0 | D64: A sélectionner dans la liste déroulante | E64: 0 | I64: à encoder | J64: à encoder | R64: 0 | S64: 0 | T64: 0 | V64: =VLOOKUP(D64,Paramètres!$A$15:$D$26,3) -> 0 | W64: =K64*Paramètres!$H$3+L64*Paramètres!$H$4+Encodage!M64*Paramètres!$H$5+Encodage!N64*Paramètres!$H$6+Encodage!O64*Paramètres!$H$7+P64*Paramètres!$H$8 -> 0 | X64: =VLOOKUP(D64,Paramètres!$A$15:$E$26,5) -> 1 | Y64: =W64*(1-X64)+(W64*X64*Paramètres!$D$3/VLOOKUP(Encodage!A64,Paramètres!$A$2:$D$15,4)) ->  | AB64: =VLOOKUP(D64,Paramètres!$A$15:$D$26,2) -> 0 | AC64: =AA64/AA$19 -> 
A65: 2016 | B65: Batiment 6 | C65: 0 | D65: A sélectionner dans la liste déroulante | E65: 0 | I65: à encoder | J65: à encoder | R65: 0 | S65: 0 | T65: 0 | V65: =VLOOKUP(D65,Paramètres!$A$15:$D$26,3) -> 0 | W65: =K65*Paramètres!$H$3+L65*Paramètres!$H$4+Encodage!M65*Paramètres!$H$5+Encodage!N65*Paramètres!$H$6+Encodage!O65*Paramètres!$H$7+P65*Paramètres!$H$8 -> 0 | X65: =VLOOKUP(D65,Paramètres!$A$15:$E$26,5) -> 1 | Y65: =W65*(1-X65)+(W65*X65*Paramètres!$D$3/VLOOKUP(Encodage!A65,Paramètres!$A$2:$D$15,4)) ->  | AB65: =VLOOKUP(D65,Paramètres!$A$15:$D$26,2) -> 0 | AC65: =AA65/AA$20 -> 
A66: 2016 | B66: Batiment 7 | C66: 0 | D66: A sélectionner dans la liste déroulante | E66: 0 | I66: à encoder | J66: à encoder | R66: 0 | S66: 0 | T66: 0 | V66: =VLOOKUP(D66,Paramètres!$A$15:$D$26,3) -> 0 | W66: =K66*Paramètres!$H$3+L66*Paramètres!$H$4+Encodage!M66*Paramètres!$H$5+Encodage!N66*Paramètres!$H$6+Encodage!O66*Paramètres!$H$7+P66*Paramètres!$H$8 -> 0 | X66: =VLOOKUP(D66,Paramètres!$A$15:$E$26,5) -> 1 | Y66: =W66*(1-X66)+(W66*X66*Paramètres!$D$3/VLOOKUP(Encodage!A66,Paramètres!$A$2:$D$15,4)) ->  | AB66: =VLOOKUP(D66,Paramètres!$A$15:$D$26,2) -> 0 | AC66: =AA66/AA$21 -> 
A67: 2016 | B67: Batiment 8 | C67: 0 | D67: A sélectionner dans la liste déroulante | E67: 0 | I67: à encoder | J67: à encoder | R67: 0 | S67: 0 | T67: 0 | V67: =VLOOKUP(D67,Paramètres!$A$15:$D$26,3) -> 0 | W67: =K67*Paramètres!$H$3+L67*Paramètres!$H$4+Encodage!M67*Paramètres!$H$5+Encodage!N67*Paramètres!$H$6+Encodage!O67*Paramètres!$H$7+P67*Paramètres!$H$8 -> 0 | X67: =VLOOKUP(D67,Paramètres!$A$15:$E$26,5) -> 1 | Y67: =W67*(1-X67)+(W67*X67*Paramètres!$D$3/VLOOKUP(Encodage!A67,Paramètres!$A$2:$D$15,4)) ->  | AB67: =VLOOKUP(D67,Paramètres!$A$15:$D$26,2) -> 0 | AC67: =AA67/AA$22 -> 
A68: 2016 | B68: Batiment 9 | C68: 0 | D68: A sélectionner dans la liste déroulante | E68: 0 | I68: à encoder | J68: à encoder | R68: 0 | S68: 0 | T68: 0 | V68: =VLOOKUP(D68,Paramètres!$A$15:$D$26,3) -> 0 | W68: =K68*Paramètres!$H$3+L68*Paramètres!$H$4+Encodage!M68*Paramètres!$H$5+Encodage!N68*Paramètres!$H$6+Encodage!O68*Paramètres!$H$7+P68*Paramètres!$H$8 -> 0 | X68: =VLOOKUP(D68,Paramètres!$A$15:$E$26,5) -> 1 | Y68: =W68*(1-X68)+(W68*X68*Paramètres!$D$3/VLOOKUP(Encodage!A68,Paramètres!$A$2:$D$15,4)) ->  | AB68: =VLOOKUP(D68,Paramètres!$A$15:$D$26,2) -> 0 | AC68: =AA68/AA$23 -> 
A69: 2016 | B69: Batiment 10 | C69: 0 | D69: A sélectionner dans la liste déroulante | E69: 0 | I69: à encoder | J69: à encoder | R69: 0 | S69: 0 | T69: 0 | V69: =VLOOKUP(D69,Paramètres!$A$15:$D$26,3) -> 0 | W69: =K69*Paramètres!$H$3+L69*Paramètres!$H$4+Encodage!M69*Paramètres!$H$5+Encodage!N69*Paramètres!$H$6+Encodage!O69*Paramètres!$H$7+P69*Paramètres!$H$8 -> 0 | X69: =VLOOKUP(D69,Paramètres!$A$15:$E$26,5) -> 1 | Y69: =W69*(1-X69)+(W69*X69*Paramètres!$D$3/VLOOKUP(Encodage!A69,Paramètres!$A$2:$D$15,4)) ->  | AB69: =VLOOKUP(D69,Paramètres!$A$15:$D$26,2) -> 0 | AC69: =AA69/AA$24 -> 
A70: 2016 | B70: Batiment 11 | C70: 0 | D70: A sélectionner dans la liste déroulante | E70: 0 | I70: à encoder | J70: à encoder | R70: 0 | S70: 0 | T70: 0 | V70: =VLOOKUP(D70,Paramètres!$A$15:$D$26,3) -> 0 | W70: =K70*Paramètres!$H$3+L70*Paramètres!$H$4+Encodage!M70*Paramètres!$H$5+Encodage!N70*Paramètres!$H$6+Encodage!O70*Paramètres!$H$7+P70*Paramètres!$H$8 -> 0 | X70: =VLOOKUP(D70,Paramètres!$A$15:$E$26,5) -> 1 | Y70: =W70*(1-X70)+(W70*X70*Paramètres!$D$3/VLOOKUP(Encodage!A70,Paramètres!$A$2:$D$15,4)) ->  | AB70: =VLOOKUP(D70,Paramètres!$A$15:$D$26,2) -> 0 | AC70: =AA70/AA$25 -> 
A71: 2016 | B71: Batiment 12 | C71: 0 | D71: A sélectionner dans la liste déroulante | E71: 0 | I71: à encoder | J71: à encoder | R71: 0 | S71: 0 | T71: 0 | V71: =VLOOKUP(D71,Paramètres!$A$15:$D$26,3) -> 0 | W71: =K71*Paramètres!$H$3+L71*Paramètres!$H$4+Encodage!M71*Paramètres!$H$5+Encodage!N71*Paramètres!$H$6+Encodage!O71*Paramètres!$H$7+P71*Paramètres!$H$8 -> 0 | X71: =VLOOKUP(D71,Paramètres!$A$15:$E$26,5) -> 1 | Y71: =W71*(1-X71)+(W71*X71*Paramètres!$D$3/VLOOKUP(Encodage!A71,Paramètres!$A$2:$D$15,4)) ->  | AB71: =VLOOKUP(D71,Paramètres!$A$15:$D$26,2) -> 0 | AC71: =AA71/AA$26 -> 
A72: 2016 | B72: Total | C72: =SUM(C60:C71) -> 0 | F72: =SUM(F60:F71) -> 0 | G72: =SUM(G60:G71) -> 0 | H72: =SUM(H60:H71) -> 0 | K72: =SUM(K60:K71) -> 0 | L72: 0 | M72: 0 | N72: 0 | O72: 0 | P72: 0 | Q72: 0 | S72: =SUM(S60:S71) -> 0 | V72: =VLOOKUP($D$5,Paramètres!$A$15:$D$26,3) ->  | W72: =SUM(W60:W71) -> 0 | Y72: =SUM(Y60:Y71) ->  | AB72: =VLOOKUP($D$5,Paramètres!$A$15:$D$26,2) ->  | AC72: =AA72/AA$27 -> 
A74: =A59+1 -> 2017
A75: =A74 -> 2017 | B75: =B60 -> Batiment 1 | C75: 0 | D75: A sélectionner dans la liste déroulante | E75: 0 | I75: =I60 -> à encoder | J75: =J60 -> à encoder | R75: =IFERROR(Q75/Q60-1,0) -> 0 | S75: =IF(F75<>0,F75,G75+H75) -> 0 | T75: =IF(S75=0,0,S75/S60-1) -> 0 | U75: =S75/C75 ->  | V75: =VLOOKUP(D75,Paramètres!$A$15:$D$26,3) -> 0 | W75: =K75*Paramètres!$H$3+L75*Paramètres!$H$4+Encodage!M75*Paramètres!$H$5+Encodage!N75*Paramètres!$H$6+Encodage!O75*Paramètres!$H$7+P75*Paramètres!$H$8 -> 0 | X75: =VLOOKUP(D75,Paramètres!$A$15:$E$26,5) -> 1 | Y75: =W75*(1-X75)+(W75*X75*Paramètres!$D$3/VLOOKUP(Encodage!A75,Paramètres!$A$2:$D$15,4)) ->  | Z75: =IF(Y75=0,0,Y75/Y60-1) ->  | AA75: =Y75/C75 ->  | AB75: =VLOOKUP(D75,Paramètres!$A$15:$D$26,2) -> 0 | AC75: =AA75/AA$15 ->  | AD75: =Y75*AA75 -> 
A76: =A75 -> 2017 | B76: Batiment 2 | C76: 0 | D76: A sélectionner dans la liste déroulante | E76: 0 | I76: à encoder | J76: à encoder | R76: 0 | S76: 0 | T76: =IF(S76=0,0,S76/S61-1) -> 0 | V76: =VLOOKUP(D76,Paramètres!$A$15:$D$26,3) -> 0 | W76: =K76*Paramètres!$H$3+L76*Paramètres!$H$4+Encodage!M76*Paramètres!$H$5+Encodage!N76*Paramètres!$H$6+Encodage!O76*Paramètres!$H$7+P76*Paramètres!$H$8 -> 0 | X76: =VLOOKUP(D76,Paramètres!$A$15:$E$26,5) -> 1 | Y76: =W76*(1-X76)+(W76*X76*Paramètres!$D$3/VLOOKUP(Encodage!A76,Paramètres!$A$2:$D$15,4)) ->  | Z76: =IF(Y76=0,0,Y76/Y61-1) ->  | AB76: =VLOOKUP(D76,Paramètres!$A$15:$D$26,2) -> 0 | AC76: =AA76/AA$16 -> 
A77: =A76 -> 2017 | B77: Batiment 3 | C77: 0 | D77: A sélectionner dans la liste déroulante | E77: 0 | I77: à encoder | J77: à encoder | R77: 0 | S77: 0 | T77: 0 | V77: =VLOOKUP(D77,Paramètres!$A$15:$D$26,3) -> 0 | W77: =K77*Paramètres!$H$3+L77*Paramètres!$H$4+Encodage!M77*Paramètres!$H$5+Encodage!N77*Paramètres!$H$6+Encodage!O77*Paramètres!$H$7+P77*Paramètres!$H$8 -> 0 | X77: =VLOOKUP(D77,Paramètres!$A$15:$E$26,5) -> 1 | Y77: =W77*(1-X77)+(W77*X77*Paramètres!$D$3/VLOOKUP(Encodage!A77,Paramètres!$A$2:$D$15,4)) ->  | AB77: =VLOOKUP(D77,Paramètres!$A$15:$D$26,2) -> 0 | AC77: =AA77/AA$17 -> 
A78: 2017 | B78: Batiment 4 | C78: 0 | D78: A sélectionner dans la liste déroulante | E78: 0 | I78: à encoder | J78: à encoder | R78: 0 | S78: 0 | T78: 0 | V78: =VLOOKUP(D78,Paramètres!$A$15:$D$26,3) -> 0 | W78: =K78*Paramètres!$H$3+L78*Paramètres!$H$4+Encodage!M78*Paramètres!$H$5+Encodage!N78*Paramètres!$H$6+Encodage!O78*Paramètres!$H$7+P78*Paramètres!$H$8 -> 0 | X78: =VLOOKUP(D78,Paramètres!$A$15:$E$26,5) -> 1 | Y78: =W78*(1-X78)+(W78*X78*Paramètres!$D$3/VLOOKUP(Encodage!A78,Paramètres!$A$2:$D$15,4)) ->  | AB78: =VLOOKUP(D78,Paramètres!$A$15:$D$26,2) -> 0 | AC78: =AA78/AA$18 -> 
A79: 2017 | B79: Batiment 5 | C79: 0 | D79: A sélectionner dans la liste déroulante | E79: 0 | I79: à encoder | J79: à encoder | R79: 0 | S79: 0 | T79: 0 | V79: =VLOOKUP(D79,Paramètres!$A$15:$D$26,3) -> 0 | W79: =K79*Paramètres!$H$3+L79*Paramètres!$H$4+Encodage!M79*Paramètres!$H$5+Encodage!N79*Paramètres!$H$6+Encodage!O79*Paramètres!$H$7+P79*Paramètres!$H$8 -> 0 | X79: =VLOOKUP(D79,Paramètres!$A$15:$E$26,5) -> 1 | Y79: =W79*(1-X79)+(W79*X79*Paramètres!$D$3/VLOOKUP(Encodage!A79,Paramètres!$A$2:$D$15,4)) ->  | AB79: =VLOOKUP(D79,Paramètres!$A$15:$D$26,2) -> 0 | AC79: =AA79/AA$19 -> 
A80: 2017 | B80: Batiment 6 | C80: 0 | D80: A sélectionner dans la liste déroulante | E80: 0 | I80: à encoder | J80: à encoder | R80: 0 | S80: 0 | T80: 0 | V80: =VLOOKUP(D80,Paramètres!$A$15:$D$26,3) -> 0 | W80: =K80*Paramètres!$H$3+L80*Paramètres!$H$4+Encodage!M80*Paramètres!$H$5+Encodage!N80*Paramètres!$H$6+Encodage!O80*Paramètres!$H$7+P80*Paramètres!$H$8 -> 0 | X80: =VLOOKUP(D80,Paramètres!$A$15:$E$26,5) -> 1 | Y80: =W80*(1-X80)+(W80*X80*Paramètres!$D$3/VLOOKUP(Encodage!A80,Paramètres!$A$2:$D$15,4)) ->  | AB80: =VLOOKUP(D80,Paramètres!$A$15:$D$26,2) -> 0 | AC80: =AA80/AA$20 -> 
A81: 2017 | B81: Batiment 7 | C81: 0 | D81: A sélectionner dans la liste déroulante | E81: 0 | I81: à encoder | J81: à encoder | R81: 0 | S81: 0 | T81: 0 | V81: =VLOOKUP(D81,Paramètres!$A$15:$D$26,3) -> 0 | W81: =K81*Paramètres!$H$3+L81*Paramètres!$H$4+Encodage!M81*Paramètres!$H$5+Encodage!N81*Paramètres!$H$6+Encodage!O81*Paramètres!$H$7+P81*Paramètres!$H$8 -> 0 | X81: =VLOOKUP(D81,Paramètres!$A$15:$E$26,5) -> 1 | Y81: =W81*(1-X81)+(W81*X81*Paramètres!$D$3/VLOOKUP(Encodage!A81,Paramètres!$A$2:$D$15,4)) ->  | AB81: =VLOOKUP(D81,Paramètres!$A$15:$D$26,2) -> 0 | AC81: =AA81/AA$21 -> 
A82: 2017 | B82: Batiment 8 | C82: 0 | D82: A sélectionner dans la liste déroulante | E82: 0 | I82: à encoder | J82: à encoder | R82: 0 | S82: 0 | T82: 0 | V82: =VLOOKUP(D82,Paramètres!$A$15:$D$26,3) -> 0 | W82: =K82*Paramètres!$H$3+L82*Paramètres!$H$4+Encodage!M82*Paramètres!$H$5+Encodage!N82*Paramètres!$H$6+Encodage!O82*Paramètres!$H$7+P82*Paramètres!$H$8 -> 0 | X82: =VLOOKUP(D82,Paramètres!$A$15:$E$26,5) -> 1 | Y82: =W82*(1-X82)+(W82*X82*Paramètres!$D$3/VLOOKUP(Encodage!A82,Paramètres!$A$2:$D$15,4)) ->  | AB82: =VLOOKUP(D82,Paramètres!$A$15:$D$26,2) -> 0 | AC82: =AA82/AA$22 -> 
A83: 2017 | B83: Batiment 9 | C83: 0 | D83: A sélectionner dans la liste déroulante | E83: 0 | I83: à encoder | J83: à encoder | R83: 0 | S83: 0 | T83: 0 | V83: =VLOOKUP(D83,Paramètres!$A$15:$D$26,3) -> 0 | W83: =K83*Paramètres!$H$3+L83*Paramètres!$H$4+Encodage!M83*Paramètres!$H$5+Encodage!N83*Paramètres!$H$6+Encodage!O83*Paramètres!$H$7+P83*Paramètres!$H$8 -> 0 | X83: =VLOOKUP(D83,Paramètres!$A$15:$E$26,5) -> 1 | Y83: =W83*(1-X83)+(W83*X83*Paramètres!$D$3/VLOOKUP(Encodage!A83,Paramètres!$A$2:$D$15,4)) ->  | AB83: =VLOOKUP(D83,Paramètres!$A$15:$D$26,2) -> 0 | AC83: =AA83/AA$23 -> 
A84: 2017 | B84: Batiment 10 | C84: 0 | D84: A sélectionner dans la liste déroulante | E84: 0 | I84: à encoder | J84: à encoder | R84: 0 | S84: 0 | T84: 0 | V84: =VLOOKUP(D84,Paramètres!$A$15:$D$26,3) -> 0 | W84: =K84*Paramètres!$H$3+L84*Paramètres!$H$4+Encodage!M84*Paramètres!$H$5+Encodage!N84*Paramètres!$H$6+Encodage!O84*Paramètres!$H$7+P84*Paramètres!$H$8 -> 0 | X84: =VLOOKUP(D84,Paramètres!$A$15:$E$26,5) -> 1 | Y84: =W84*(1-X84)+(W84*X84*Paramètres!$D$3/VLOOKUP(Encodage!A84,Paramètres!$A$2:$D$15,4)) ->  | AB84: =VLOOKUP(D84,Paramètres!$A$15:$D$26,2) -> 0 | AC84: =AA84/AA$24 -> 
A85: 2017 | B85: Batiment 11 | C85: 0 | D85: A sélectionner dans la liste déroulante | E85: 0 | I85: à encoder | J85: à encoder | R85: 0 | S85: 0 | T85: 0 | V85: =VLOOKUP(D85,Paramètres!$A$15:$D$26,3) -> 0 | W85: =K85*Paramètres!$H$3+L85*Paramètres!$H$4+Encodage!M85*Paramètres!$H$5+Encodage!N85*Paramètres!$H$6+Encodage!O85*Paramètres!$H$7+P85*Paramètres!$H$8 -> 0 | X85: =VLOOKUP(D85,Paramètres!$A$15:$E$26,5) -> 1 | Y85: =W85*(1-X85)+(W85*X85*Paramètres!$D$3/VLOOKUP(Encodage!A85,Paramètres!$A$2:$D$15,4)) ->  | AB85: =VLOOKUP(D85,Paramètres!$A$15:$D$26,2) -> 0 | AC85: =AA85/AA$25 -> 
A86: 2017 | B86: Batiment 12 | C86: 0 | D86: A sélectionner dans la liste déroulante | E86: 0 | I86: à encoder | J86: à encoder | R86: 0 | S86: 0 | T86: 0 | V86: =VLOOKUP(D86,Paramètres!$A$15:$D$26,3) -> 0 | W86: =K86*Paramètres!$H$3+L86*Paramètres!$H$4+Encodage!M86*Paramètres!$H$5+Encodage!N86*Paramètres!$H$6+Encodage!O86*Paramètres!$H$7+P86*Paramètres!$H$8 -> 0 | X86: =VLOOKUP(D86,Paramètres!$A$15:$E$26,5) -> 1 | Y86: =W86*(1-X86)+(W86*X86*Paramètres!$D$3/VLOOKUP(Encodage!A86,Paramètres!$A$2:$D$15,4)) ->  | AB86: =VLOOKUP(D86,Paramètres!$A$15:$D$26,2) -> 0 | AC86: =AA86/AA$26 -> 
A87: 2017 | B87: Total | C87: =SUM(C75:C86) -> 0 | F87: =SUM(F75:F86) -> 0 | G87: =SUM(G75:G86) -> 0 | H87: =SUM(H75:H86) -> 0 | K87: =SUM(K75:K86) -> 0 | L87: 0 | M87: 0 | N87: 0 | O87: 0 | P87: 0 | Q87: 0 | S87: =SUM(S75:S86) -> 0 | V87: =VLOOKUP($D$5,Paramètres!$A$15:$D$26,3) ->  | W87: =SUM(W75:W86) -> 0 | Y87: =SUM(Y75:Y86) ->  | AB87: =VLOOKUP($D$5,Paramètres!$A$15:$D$26,2) ->  | AC87: =AA87/AA$27 -> 
A89: =A74+1 -> 2018
A90: =A89 -> 2018 | B90: =B75 -> Batiment 1 | C90: 0 | D90: A sélectionner dans la liste déroulante | E90: 0 | I90: =I75 -> à encoder | J90: =J75 -> à encoder | R90: =IFERROR(Q90/Q75-1,0) -> 0 | S90: =IF(F90<>0,F90,G90+H90) -> 0 | T90: =IF(S90=0,0,S90/S75-1) -> 0 | U90: =S90/C90 ->  | V90: =VLOOKUP(D90,Paramètres!$A$15:$D$26,3) -> 0 | W90: =K90*Paramètres!$H$3+L90*Paramètres!$H$4+Encodage!M90*Paramètres!$H$5+Encodage!N90*Paramètres!$H$6+Encodage!O90*Paramètres!$H$7+P90*Paramètres!$H$8 -> 0 | X90: =VLOOKUP(D90,Paramètres!$A$15:$E$26,5) -> 1 | Y90: =W90*(1-X90)+(W90*X90*Paramètres!$D$3/VLOOKUP(Encodage!A90,Paramètres!$A$2:$D$15,4)) ->  | Z90: =IF(Y90=0,0,Y90/Y75-1) ->  | AA90: =Y90/C90 ->  | AB90: =VLOOKUP(D90,Paramètres!$A$15:$D$26,2) -> 0 | AC90: =AA90/AA$15 ->  | AD90: =Y90*AA90 -> 
A91: =A90 -> 2018 | B91: Batiment 2 | C91: 0 | D91: A sélectionner dans la liste déroulante | E91: 0 | I91: à encoder | J91: à encoder | R91: 0 | S91: 0 | T91: =IF(S91=0,0,S91/S76-1) -> 0 | V91: =VLOOKUP(D91,Paramètres!$A$15:$D$26,3) -> 0 | W91: =K91*Paramètres!$H$3+L91*Paramètres!$H$4+Encodage!M91*Paramètres!$H$5+Encodage!N91*Paramètres!$H$6+Encodage!O91*Paramètres!$H$7+P91*Paramètres!$H$8 -> 0 | X91: =VLOOKUP(D91,Paramètres!$A$15:$E$26,5) -> 1 | Y91: =W91*(1-X91)+(W91*X91*Paramètres!$D$3/VLOOKUP(Encodage!A91,Paramètres!$A$2:$D$15,4)) ->  | Z91: =IF(Y91=0,0,Y91/Y76-1) ->  | AB91: =VLOOKUP(D91,Paramètres!$A$15:$D$26,2) -> 0 | AC91: =AA91/AA$16 -> 
A92: =A91 -> 2018 | B92: Batiment 3 | C92: 0 | D92: A sélectionner dans la liste déroulante | E92: 0 | I92: à encoder | J92: à encoder | R92: 0 | S92: 0 | T92: 0 | V92: =VLOOKUP(D92,Paramètres!$A$15:$D$26,3) -> 0 | W92: =K92*Paramètres!$H$3+L92*Paramètres!$H$4+Encodage!M92*Paramètres!$H$5+Encodage!N92*Paramètres!$H$6+Encodage!O92*Paramètres!$H$7+P92*Paramètres!$H$8 -> 0 | X92: =VLOOKUP(D92,Paramètres!$A$15:$E$26,5) -> 1 | Y92: =W92*(1-X92)+(W92*X92*Paramètres!$D$3/VLOOKUP(Encodage!A92,Paramètres!$A$2:$D$15,4)) ->  | AB92: =VLOOKUP(D92,Paramètres!$A$15:$D$26,2) -> 0 | AC92: =AA92/AA$17 -> 
A93: 2018 | B93: Batiment 4 | C93: 0 | D93: A sélectionner dans la liste déroulante | E93: 0 | I93: à encoder | J93: à encoder | R93: 0 | S93: 0 | T93: 0 | V93: =VLOOKUP(D93,Paramètres!$A$15:$D$26,3) -> 0 | W93: =K93*Paramètres!$H$3+L93*Paramètres!$H$4+Encodage!M93*Paramètres!$H$5+Encodage!N93*Paramètres!$H$6+Encodage!O93*Paramètres!$H$7+P93*Paramètres!$H$8 -> 0 | X93: =VLOOKUP(D93,Paramètres!$A$15:$E$26,5) -> 1 | Y93: =W93*(1-X93)+(W93*X93*Paramètres!$D$3/VLOOKUP(Encodage!A93,Paramètres!$A$2:$D$15,4)) ->  | AB93: =VLOOKUP(D93,Paramètres!$A$15:$D$26,2) -> 0 | AC93: =AA93/AA$18 -> 
A94: 2018 | B94: Batiment 5 | C94: 0 | D94: A sélectionner dans la liste déroulante | E94: 0 | I94: à encoder | J94: à encoder | R94: 0 | S94: 0 | T94: 0 | V94: =VLOOKUP(D94,Paramètres!$A$15:$D$26,3) -> 0 | W94: =K94*Paramètres!$H$3+L94*Paramètres!$H$4+Encodage!M94*Paramètres!$H$5+Encodage!N94*Paramètres!$H$6+Encodage!O94*Paramètres!$H$7+P94*Paramètres!$H$8 -> 0 | X94: =VLOOKUP(D94,Paramètres!$A$15:$E$26,5) -> 1 | Y94: =W94*(1-X94)+(W94*X94*Paramètres!$D$3/VLOOKUP(Encodage!A94,Paramètres!$A$2:$D$15,4)) ->  | AB94: =VLOOKUP(D94,Paramètres!$A$15:$D$26,2) -> 0 | AC94: =AA94/AA$19 -> 
A95: 2018 | B95: Batiment 6 | C95: 0 | D95: A sélectionner dans la liste déroulante | E95: 0 | I95: à encoder | J95: à encoder | R95: 0 | S95: 0 | T95: 0 | V95: =VLOOKUP(D95,Paramètres!$A$15:$D$26,3) -> 0 | W95: =K95*Paramètres!$H$3+L95*Paramètres!$H$4+Encodage!M95*Paramètres!$H$5+Encodage!N95*Paramètres!$H$6+Encodage!O95*Paramètres!$H$7+P95*Paramètres!$H$8 -> 0 | X95: =VLOOKUP(D95,Paramètres!$A$15:$E$26,5) -> 1 | Y95: =W95*(1-X95)+(W95*X95*Paramètres!$D$3/VLOOKUP(Encodage!A95,Paramètres!$A$2:$D$15,4)) ->  | AB95: =VLOOKUP(D95,Paramètres!$A$15:$D$26,2) -> 0 | AC95: =AA95/AA$20 -> 
A96: 2018 | B96: Batiment 7 | C96: 0 | D96: A sélectionner dans la liste déroulante | E96: 0 | I96: à encoder | J96: à encoder | R96: 0 | S96: 0 | T96: 0 | V96: =VLOOKUP(D96,Paramètres!$A$15:$D$26,3) -> 0 | W96: =K96*Paramètres!$H$3+L96*Paramètres!$H$4+Encodage!M96*Paramètres!$H$5+Encodage!N96*Paramètres!$H$6+Encodage!O96*Paramètres!$H$7+P96*Paramètres!$H$8 -> 0 | X96: =VLOOKUP(D96,Paramètres!$A$15:$E$26,5) -> 1 | Y96: =W96*(1-X96)+(W96*X96*Paramètres!$D$3/VLOOKUP(Encodage!A96,Paramètres!$A$2:$D$15,4)) ->  | AB96: =VLOOKUP(D96,Paramètres!$A$15:$D$26,2) -> 0 | AC96: =AA96/AA$21 -> 
A97: 2018 | B97: Batiment 8 | C97: 0 | D97: A sélectionner dans la liste déroulante | E97: 0 | I97: à encoder | J97: à encoder | R97: 0 | S97: 0 | T97: 0 | V97: =VLOOKUP(D97,Paramètres!$A$15:$D$26,3) -> 0 | W97: =K97*Paramètres!$H$3+L97*Paramètres!$H$4+Encodage!M97*Paramètres!$H$5+Encodage!N97*Paramètres!$H$6+Encodage!O97*Paramètres!$H$7+P97*Paramètres!$H$8 -> 0 | X97: =VLOOKUP(D97,Paramètres!$A$15:$E$26,5) -> 1 | Y97: =W97*(1-X97)+(W97*X97*Paramètres!$D$3/VLOOKUP(Encodage!A97,Paramètres!$A$2:$D$15,4)) ->  | AB97: =VLOOKUP(D97,Paramètres!$A$15:$D$26,2) -> 0 | AC97: =AA97/AA$22 -> 
A98: 2018 | B98: Batiment 9 | C98: 0 | D98: A sélectionner dans la liste déroulante | E98: 0 | I98: à encoder | J98: à encoder | R98: 0 | S98: 0 | T98: 0 | V98: =VLOOKUP(D98,Paramètres!$A$15:$D$26,3) -> 0 | W98: =K98*Paramètres!$H$3+L98*Paramètres!$H$4+Encodage!M98*Paramètres!$H$5+Encodage!N98*Paramètres!$H$6+Encodage!O98*Paramètres!$H$7+P98*Paramètres!$H$8 -> 0 | X98: =VLOOKUP(D98,Paramètres!$A$15:$E$26,5) -> 1 | Y98: =W98*(1-X98)+(W98*X98*Paramètres!$D$3/VLOOKUP(Encodage!A98,Paramètres!$A$2:$D$15,4)) ->  | AB98: =VLOOKUP(D98,Paramètres!$A$15:$D$26,2) -> 0 | AC98: =AA98/AA$23 -> 
A99: 2018 | B99: Batiment 10 | C99: 0 | D99: A sélectionner dans la liste déroulante | E99: 0 | I99: à encoder | J99: à encoder | R99: 0 | S99: 0 | T99: 0 | V99: =VLOOKUP(D99,Paramètres!$A$15:$D$26,3) -> 0 | W99: =K99*Paramètres!$H$3+L99*Paramètres!$H$4+Encodage!M99*Paramètres!$H$5+Encodage!N99*Paramètres!$H$6+Encodage!O99*Paramètres!$H$7+P99*Paramètres!$H$8 -> 0 | X99: =VLOOKUP(D99,Paramètres!$A$15:$E$26,5) -> 1 | Y99: =W99*(1-X99)+(W99*X99*Paramètres!$D$3/VLOOKUP(Encodage!A99,Paramètres!$A$2:$D$15,4)) ->  | AB99: =VLOOKUP(D99,Paramètres!$A$15:$D$26,2) -> 0 | AC99: =AA99/AA$24 -> 
A100: 2018 | B100: Batiment 11 | C100: 0 | D100: A sélectionner dans la liste déroulante | E100: 0 | I100: à encoder | J100: à encoder | R100: 0 | S100: 0 | T100: 0 | V100: =VLOOKUP(D100,Paramètres!$A$15:$D$26,3) -> 0 | W100: =K100*Paramètres!$H$3+L100*Paramètres!$H$4+Encodage!M100*Paramètres!$H$5+Encodage!N100*Paramètres!$H$6+Encodage!O100*Paramètres!$H$7+P100*Paramètres!$H$8 -> 0 | X100: =VLOOKUP(D100,Paramètres!$A$15:$E$26,5) -> 1 | Y100: =W100*(1-X100)+(W100*X100*Paramètres!$D$3/VLOOKUP(Encodage!A100,Paramètres!$A$2:$D$15,4)) ->  | AB100: =VLOOKUP(D100,Paramètres!$A$15:$D$26,2) -> 0 | AC100: =AA100/AA$25 -> 
A101: 2018 | B101: Batiment 12 | C101: 0 | D101: A sélectionner dans la liste déroulante | E101: 0 | I101: à encoder | J101: à encoder | R101: 0 | S101: 0 | T101: 0 | V101: =VLOOKUP(D101,Paramètres!$A$15:$D$26,3) -> 0 | W101: =K101*Paramètres!$H$3+L101*Paramètres!$H$4+Encodage!M101*Paramètres!$H$5+Encodage!N101*Paramètres!$H$6+Encodage!O101*Paramètres!$H$7+P101*Paramètres!$H$8 -> 0 | X101: =VLOOKUP(D101,Paramètres!$A$15:$E$26,5) -> 1 | Y101: =W101*(1-X101)+(W101*X101*Paramètres!$D$3/VLOOKUP(Encodage!A101,Paramètres!$A$2:$D$15,4)) ->  | AB101: =VLOOKUP(D101,Paramètres!$A$15:$D$26,2) -> 0 | AC101: =AA101/AA$26 -> 
A102: 2018 | B102: Total | C102: =SUM(C90:C101) -> 0 | F102: =SUM(F90:F101) -> 0 | G102: =SUM(G90:G101) -> 0 | H102: =SUM(H90:H101) -> 0 | K102: =SUM(K90:K101) -> 0 | L102: 0 | M102: 0 | N102: 0 | O102: 0 | P102: 0 | Q102: 0 | S102: =SUM(S90:S101) -> 0 | V102: =VLOOKUP($D$5,Paramètres!$A$15:$D$26,3) ->  | W102: =SUM(W90:W101) -> 0 | Y102: =SUM(Y90:Y101) ->  | AB102: =VLOOKUP($D$5,Paramètres!$A$15:$D$26,2) ->  | AC102: =AA102/AA$27 -> 
A104: =A89+1 -> 2019
A105: =A104 -> 2019 | B105: =B90 -> Batiment 1 | C105: 0 | D105: A sélectionner dans la liste déroulante | E105: 0 | I105: =I90 -> à encoder | J105: =J90 -> à encoder | R105: =IFERROR(Q105/Q90-1,0) -> 0 | S105: =IF(F105<>0,F105,G105+H105) -> 0 | T105: =IF(S105=0,0,S105/S90-1) -> 0 | U105: =S105/C105 ->  | V105: =VLOOKUP(D105,Paramètres!$A$15:$D$26,3) -> 0 | W105: =K105*Paramètres!$H$3+L105*Paramètres!$H$4+Encodage!M105*Paramètres!$H$5+Encodage!N105*Paramètres!$H$6+Encodage!O105*Paramètres!$H$7+P105*Paramètres!$H$8 -> 0 | X105: =VLOOKUP(D105,Paramètres!$A$15:$E$26,5) -> 1 | Y105: =W105*(1-X105)+(W105*X105*Paramètres!$D$3/VLOOKUP(Encodage!A105,Paramètres!$A$2:$D$15,4)) ->  | Z105: =IF(Y105=0,0,Y105/Y90-1) ->  | AA105: =Y105/C105 ->  | AB105: =VLOOKUP(D105,Paramètres!$A$15:$D$26,2) -> 0 | AC105: =AA105/AA$15 ->  | AD105: =Y105*AA105 -> 
A106: =A105 -> 2019 | B106: Batiment 2 | C106: 0 | D106: A sélectionner dans la liste déroulante | E106: 0 | I106: à encoder | J106: à encoder | R106: 0 | S106: 0 | T106: =IF(S106=0,0,S106/S91-1) -> 0 | V106: =VLOOKUP(D106,Paramètres!$A$15:$D$26,3) -> 0 | W106: =K106*Paramètres!$H$3+L106*Paramètres!$H$4+Encodage!M106*Paramètres!$H$5+Encodage!N106*Paramètres!$H$6+Encodage!O106*Paramètres!$H$7+P106*Paramètres!$H$8 -> 0 | X106: =VLOOKUP(D106,Paramètres!$A$15:$E$26,5) -> 1 | Y106: =W106*(1-X106)+(W106*X106*Paramètres!$D$3/VLOOKUP(Encodage!A106,Paramètres!$A$2:$D$15,4)) ->  | Z106: =IF(Y106=0,0,Y106/Y91-1) ->  | AB106: =VLOOKUP(D106,Paramètres!$A$15:$D$26,2) -> 0 | AC106: =AA106/AA$16 -> 
A107: =A106 -> 2019 | B107: Batiment 3 | C107: 0 | D107: A sélectionner dans la liste déroulante | E107: 0 | I107: à encoder | J107: à encoder | R107: 0 | S107: 0 | T107: 0 | V107: =VLOOKUP(D107,Paramètres!$A$15:$D$26,3) -> 0 | W107: =K107*Paramètres!$H$3+L107*Paramètres!$H$4+Encodage!M107*Paramètres!$H$5+Encodage!N107*Paramètres!$H$6+Encodage!O107*Paramètres!$H$7+P107*Paramètres!$H$8 -> 0 | X107: =VLOOKUP(D107,Paramètres!$A$15:$E$26,5) -> 1 | Y107: =W107*(1-X107)+(W107*X107*Paramètres!$D$3/VLOOKUP(Encodage!A107,Paramètres!$A$2:$D$15,4)) ->  | AB107: =VLOOKUP(D107,Paramètres!$A$15:$D$26,2) -> 0 | AC107: =AA107/AA$17 -> 
A108: 2019 | B108: Batiment 4 | C108: 0 | D108: A sélectionner dans la liste déroulante | E108: 0 | I108: à encoder | J108: à encoder | R108: 0 | S108: 0 | T108: 0 | V108: =VLOOKUP(D108,Paramètres!$A$15:$D$26,3) -> 0 | W108: =K108*Paramètres!$H$3+L108*Paramètres!$H$4+Encodage!M108*Paramètres!$H$5+Encodage!N108*Paramètres!$H$6+Encodage!O108*Paramètres!$H$7+P108*Paramètres!$H$8 -> 0 | X108: =VLOOKUP(D108,Paramètres!$A$15:$E$26,5) -> 1 | Y108: =W108*(1-X108)+(W108*X108*Paramètres!$D$3/VLOOKUP(Encodage!A108,Paramètres!$A$2:$D$15,4)) ->  | AB108: =VLOOKUP(D108,Paramètres!$A$15:$D$26,2) -> 0 | AC108: =AA108/AA$18 -> 
A109: 2019 | B109: Batiment 5 | C109: 0 | D109: A sélectionner dans la liste déroulante | E109: 0 | I109: à encoder | J109: à encoder | R109: 0 | S109: 0 | T109: 0 | V109: =VLOOKUP(D109,Paramètres!$A$15:$D$26,3) -> 0 | W109: =K109*Paramètres!$H$3+L109*Paramètres!$H$4+Encodage!M109*Paramètres!$H$5+Encodage!N109*Paramètres!$H$6+Encodage!O109*Paramètres!$H$7+P109*Paramètres!$H$8 -> 0 | X109: =VLOOKUP(D109,Paramètres!$A$15:$E$26,5) -> 1 | Y109: =W109*(1-X109)+(W109*X109*Paramètres!$D$3/VLOOKUP(Encodage!A109,Paramètres!$A$2:$D$15,4)) ->  | AB109: =VLOOKUP(D109,Paramètres!$A$15:$D$26,2) -> 0 | AC109: =AA109/AA$19 -> 
A110: 2019 | B110: Batiment 6 | C110: 0 | D110: A sélectionner dans la liste déroulante | E110: 0 | I110: à encoder | J110: à encoder | R110: 0 | S110: 0 | T110: 0 | V110: =VLOOKUP(D110,Paramètres!$A$15:$D$26,3) -> 0 | W110: =K110*Paramètres!$H$3+L110*Paramètres!$H$4+Encodage!M110*Paramètres!$H$5+Encodage!N110*Paramètres!$H$6+Encodage!O110*Paramètres!$H$7+P110*Paramètres!$H$8 -> 0 | X110: =VLOOKUP(D110,Paramètres!$A$15:$E$26,5) -> 1 | Y110: =W110*(1-X110)+(W110*X110*Paramètres!$D$3/VLOOKUP(Encodage!A110,Paramètres!$A$2:$D$15,4)) ->  | AB110: =VLOOKUP(D110,Paramètres!$A$15:$D$26,2) -> 0 | AC110: =AA110/AA$20 -> 
A111: 2019 | B111: Batiment 7 | C111: 0 | D111: A sélectionner dans la liste déroulante | E111: 0 | I111: à encoder | J111: à encoder | R111: 0 | S111: 0 | T111: 0 | V111: =VLOOKUP(D111,Paramètres!$A$15:$D$26,3) -> 0 | W111: =K111*Paramètres!$H$3+L111*Paramètres!$H$4+Encodage!M111*Paramètres!$H$5+Encodage!N111*Paramètres!$H$6+Encodage!O111*Paramètres!$H$7+P111*Paramètres!$H$8 -> 0 | X111: =VLOOKUP(D111,Paramètres!$A$15:$E$26,5) -> 1 | Y111: =W111*(1-X111)+(W111*X111*Paramètres!$D$3/VLOOKUP(Encodage!A111,Paramètres!$A$2:$D$15,4)) ->  | AB111: =VLOOKUP(D111,Paramètres!$A$15:$D$26,2) -> 0 | AC111: =AA111/AA$21 -> 
A112: 2019 | B112: Batiment 8 | C112: 0 | D112: A sélectionner dans la liste déroulante | E112: 0 | I112: à encoder | J112: à encoder | R112: 0 | S112: 0 | T112: 0 | V112: =VLOOKUP(D112,Paramètres!$A$15:$D$26,3) -> 0 | W112: =K112*Paramètres!$H$3+L112*Paramètres!$H$4+Encodage!M112*Paramètres!$H$5+Encodage!N112*Paramètres!$H$6+Encodage!O112*Paramètres!$H$7+P112*Paramètres!$H$8 -> 0 | X112: =VLOOKUP(D112,Paramètres!$A$15:$E$26,5) -> 1 | Y112: =W112*(1-X112)+(W112*X112*Paramètres!$D$3/VLOOKUP(Encodage!A112,Paramètres!$A$2:$D$15,4)) ->  | AB112: =VLOOKUP(D112,Paramètres!$A$15:$D$26,2) -> 0 | AC112: =AA112/AA$22 -> 
A113: 2019 | B113: Batiment 9 | C113: 0 | D113: A sélectionner dans la liste déroulante | E113: 0 | I113: à encoder | J113: à encoder | R113: 0 | S113: 0 | T113: 0 | V113: =VLOOKUP(D113,Paramètres!$A$15:$D$26,3) -> 0 | W113: =K113*Paramètres!$H$3+L113*Paramètres!$H$4+Encodage!M113*Paramètres!$H$5+Encodage!N113*Paramètres!$H$6+Encodage!O113*Paramètres!$H$7+P113*Paramètres!$H$8 -> 0 | X113: =VLOOKUP(D113,Paramètres!$A$15:$E$26,5) -> 1 | Y113: =W113*(1-X113)+(W113*X113*Paramètres!$D$3/VLOOKUP(Encodage!A113,Paramètres!$A$2:$D$15,4)) ->  | AB113: =VLOOKUP(D113,Paramètres!$A$15:$D$26,2) -> 0 | AC113: =AA113/AA$23 -> 
A114: 2019 | B114: Batiment 10 | C114: 0 | D114: A sélectionner dans la liste déroulante | E114: 0 | I114: à encoder | J114: à encoder | R114: 0 | S114: 0 | T114: 0 | V114: =VLOOKUP(D114,Paramètres!$A$15:$D$26,3) -> 0 | W114: =K114*Paramètres!$H$3+L114*Paramètres!$H$4+Encodage!M114*Paramètres!$H$5+Encodage!N114*Paramètres!$H$6+Encodage!O114*Paramètres!$H$7+P114*Paramètres!$H$8 -> 0 | X114: =VLOOKUP(D114,Paramètres!$A$15:$E$26,5) -> 1 | Y114: =W114*(1-X114)+(W114*X114*Paramètres!$D$3/VLOOKUP(Encodage!A114,Paramètres!$A$2:$D$15,4)) ->  | AB114: =VLOOKUP(D114,Paramètres!$A$15:$D$26,2) -> 0 | AC114: =AA114/AA$24 -> 
A115: 2019 | B115: Batiment 11 | C115: 0 | D115: A sélectionner dans la liste déroulante | E115: 0 | I115: à encoder | J115: à encoder | R115: 0 | S115: 0 | T115: 0 | V115: =VLOOKUP(D115,Paramètres!$A$15:$D$26,3) -> 0 | W115: =K115*Paramètres!$H$3+L115*Paramètres!$H$4+Encodage!M115*Paramètres!$H$5+Encodage!N115*Paramètres!$H$6+Encodage!O115*Paramètres!$H$7+P115*Paramètres!$H$8 -> 0 | X115: =VLOOKUP(D115,Paramètres!$A$15:$E$26,5) -> 1 | Y115: =W115*(1-X115)+(W115*X115*Paramètres!$D$3/VLOOKUP(Encodage!A115,Paramètres!$A$2:$D$15,4)) ->  | AB115: =VLOOKUP(D115,Paramètres!$A$15:$D$26,2) -> 0 | AC115: =AA115/AA$25 -> 
A116: 2019 | B116: Batiment 12 | C116: 0 | D116: A sélectionner dans la liste déroulante | E116: 0 | I116: à encoder | J116: à encoder | R116: 0 | S116: 0 | T116: 0 | V116: =VLOOKUP(D116,Paramètres!$A$15:$D$26,3) -> 0 | W116: =K116*Paramètres!$H$3+L116*Paramètres!$H$4+Encodage!M116*Paramètres!$H$5+Encodage!N116*Paramètres!$H$6+Encodage!O116*Paramètres!$H$7+P116*Paramètres!$H$8 -> 0 | X116: =VLOOKUP(D116,Paramètres!$A$15:$E$26,5) -> 1 | Y116: =W116*(1-X116)+(W116*X116*Paramètres!$D$3/VLOOKUP(Encodage!A116,Paramètres!$A$2:$D$15,4)) ->  | AB116: =VLOOKUP(D116,Paramètres!$A$15:$D$26,2) -> 0 | AC116: =AA116/AA$26 -> 
A117: 2019 | B117: Total | C117: =SUM(C105:C116) -> 0 | F117: =SUM(F105:F116) -> 0 | G117: =SUM(G105:G116) -> 0 | H117: =SUM(H105:H116) -> 0 | K117: =SUM(K105:K116) -> 0 | L117: 0 | M117: 0 | N117: 0 | O117: 0 | P117: 0 | Q117: 0 | S117: =SUM(S105:S116) -> 0 | V117: =VLOOKUP($D$5,Paramètres!$A$15:$D$26,3) ->  | W117: =SUM(W105:W116) -> 0 | Y117: =SUM(Y105:Y116) ->  | AB117: =VLOOKUP($D$5,Paramètres!$A$15:$D$26,2) ->  | AC117: =AA117/AA$27 -> 
A119: =A104+1 -> 2020
A120: =A119 -> 2020 | B120: =B105 -> Batiment 1 | C120: 0 | D120: A sélectionner dans la liste déroulante | E120: 0 | I120: =I105 -> à encoder | J120: =J105 -> à encoder | R120: =IFERROR(Q120/Q105-1,0) -> 0 | S120: =IF(F120<>0,F120,G120+H120) -> 0 | T120: =IF(S120=0,0,S120/S105-1) -> 0 | U120: =S120/C120 ->  | V120: =VLOOKUP(D120,Paramètres!$A$15:$D$26,3) -> 0 | W120: =K120*Paramètres!$H$3+L120*Paramètres!$H$4+Encodage!M120*Paramètres!$H$5+Encodage!N120*Paramètres!$H$6+Encodage!O120*Paramètres!$H$7+P120*Paramètres!$H$8 -> 0 | X120: =VLOOKUP(D120,Paramètres!$A$15:$E$26,5) -> 1 | Y120: =W120*(1-X120)+(W120*X120*Paramètres!$D$3/VLOOKUP(Encodage!A120,Paramètres!$A$2:$D$15,4)) ->  | Z120: =IF(Y120=0,0,Y120/Y105-1) ->  | AA120: =Y120/C120 ->  | AB120: =VLOOKUP(D120,Paramètres!$A$15:$D$26,2) -> 0 | AC120: =AA120/AA$15 ->  | AD120: =Y120*AA120 -> 
A121: =A120 -> 2020 | B121: Batiment 2 | C121: 0 | D121: A sélectionner dans la liste déroulante | E121: 0 | I121: à encoder | J121: à encoder | R121: 0 | S121: 0 | T121: =IF(S121=0,0,S121/S106-1) -> 0 | V121: =VLOOKUP(D121,Paramètres!$A$15:$D$26,3) -> 0 | W121: =K121*Paramètres!$H$3+L121*Paramètres!$H$4+Encodage!M121*Paramètres!$H$5+Encodage!N121*Paramètres!$H$6+Encodage!O121*Paramètres!$H$7+P121*Paramètres!$H$8 -> 0 | X121: =VLOOKUP(D121,Paramètres!$A$15:$E$26,5) -> 1 | Y121: =W121*(1-X121)+(W121*X121*Paramètres!$D$3/VLOOKUP(Encodage!A121,Paramètres!$A$2:$D$15,4)) ->  | Z121: =IF(Y121=0,0,Y121/Y106-1) ->  | AB121: =VLOOKUP(D121,Paramètres!$A$15:$D$26,2) -> 0 | AC121: =AA121/AA$16 -> 
A122: =A121 -> 2020 | B122: Batiment 3 | C122: 0 | D122: A sélectionner dans la liste déroulante | E122: 0 | I122: à encoder | J122: à encoder | R122: 0 | S122: 0 | T122: 0 | V122: =VLOOKUP(D122,Paramètres!$A$15:$D$26,3) -> 0 | W122: =K122*Paramètres!$H$3+L122*Paramètres!$H$4+Encodage!M122*Paramètres!$H$5+Encodage!N122*Paramètres!$H$6+Encodage!O122*Paramètres!$H$7+P122*Paramètres!$H$8 -> 0 | X122: =VLOOKUP(D122,Paramètres!$A$15:$E$26,5) -> 1 | Y122: =W122*(1-X122)+(W122*X122*Paramètres!$D$3/VLOOKUP(Encodage!A122,Paramètres!$A$2:$D$15,4)) ->  | AB122: =VLOOKUP(D122,Paramètres!$A$15:$D$26,2) -> 0 | AC122: =AA122/AA$17 -> 
A123: 2020 | B123: Batiment 4 | C123: 0 | D123: A sélectionner dans la liste déroulante | E123: 0 | I123: à encoder | J123: à encoder | R123: 0 | S123: 0 | T123: 0 | V123: =VLOOKUP(D123,Paramètres!$A$15:$D$26,3) -> 0 | W123: =K123*Paramètres!$H$3+L123*Paramètres!$H$4+Encodage!M123*Paramètres!$H$5+Encodage!N123*Paramètres!$H$6+Encodage!O123*Paramètres!$H$7+P123*Paramètres!$H$8 -> 0 | X123: =VLOOKUP(D123,Paramètres!$A$15:$E$26,5) -> 1 | Y123: =W123*(1-X123)+(W123*X123*Paramètres!$D$3/VLOOKUP(Encodage!A123,Paramètres!$A$2:$D$15,4)) ->  | AB123: =VLOOKUP(D123,Paramètres!$A$15:$D$26,2) -> 0 | AC123: =AA123/AA$18 -> 
A124: 2020 | B124: Batiment 5 | C124: 0 | D124: A sélectionner dans la liste déroulante | E124: 0 | I124: à encoder | J124: à encoder | R124: 0 | S124: 0 | T124: 0 | V124: =VLOOKUP(D124,Paramètres!$A$15:$D$26,3) -> 0 | W124: =K124*Paramètres!$H$3+L124*Paramètres!$H$4+Encodage!M124*Paramètres!$H$5+Encodage!N124*Paramètres!$H$6+Encodage!O124*Paramètres!$H$7+P124*Paramètres!$H$8 -> 0 | X124: =VLOOKUP(D124,Paramètres!$A$15:$E$26,5) -> 1 | Y124: =W124*(1-X124)+(W124*X124*Paramètres!$D$3/VLOOKUP(Encodage!A124,Paramètres!$A$2:$D$15,4)) ->  | AB124: =VLOOKUP(D124,Paramètres!$A$15:$D$26,2) -> 0 | AC124: =AA124/AA$19 -> 
A125: 2020 | B125: Batiment 6 | C125: 0 | D125: A sélectionner dans la liste déroulante | E125: 0 | I125: à encoder | J125: à encoder | R125: 0 | S125: 0 | T125: 0 | V125: =VLOOKUP(D125,Paramètres!$A$15:$D$26,3) -> 0 | W125: =K125*Paramètres!$H$3+L125*Paramètres!$H$4+Encodage!M125*Paramètres!$H$5+Encodage!N125*Paramètres!$H$6+Encodage!O125*Paramètres!$H$7+P125*Paramètres!$H$8 -> 0 | X125: =VLOOKUP(D125,Paramètres!$A$15:$E$26,5) -> 1 | Y125: =W125*(1-X125)+(W125*X125*Paramètres!$D$3/VLOOKUP(Encodage!A125,Paramètres!$A$2:$D$15,4)) ->  | AB125: =VLOOKUP(D125,Paramètres!$A$15:$D$26,2) -> 0 | AC125: =AA125/AA$20 -> 
A126: 2020 | B126: Batiment 7 | C126: 0 | D126: A sélectionner dans la liste déroulante | E126: 0 | I126: à encoder | J126: à encoder | R126: 0 | S126: 0 | T126: 0 | V126: =VLOOKUP(D126,Paramètres!$A$15:$D$26,3) -> 0 | W126: =K126*Paramètres!$H$3+L126*Paramètres!$H$4+Encodage!M126*Paramètres!$H$5+Encodage!N126*Paramètres!$H$6+Encodage!O126*Paramètres!$H$7+P126*Paramètres!$H$8 -> 0 | X126: =VLOOKUP(D126,Paramètres!$A$15:$E$26,5) -> 1 | Y126: =W126*(1-X126)+(W126*X126*Paramètres!$D$3/VLOOKUP(Encodage!A126,Paramètres!$A$2:$D$15,4)) ->  | AB126: =VLOOKUP(D126,Paramètres!$A$15:$D$26,2) -> 0 | AC126: =AA126/AA$21 -> 
A127: 2020 | B127: Batiment 8 | C127: 0 | D127: A sélectionner dans la liste déroulante | E127: 0 | I127: à encoder | J127: à encoder | R127: 0 | S127: 0 | T127: 0 | V127: =VLOOKUP(D127,Paramètres!$A$15:$D$26,3) -> 0 | W127: =K127*Paramètres!$H$3+L127*Paramètres!$H$4+Encodage!M127*Paramètres!$H$5+Encodage!N127*Paramètres!$H$6+Encodage!O127*Paramètres!$H$7+P127*Paramètres!$H$8 -> 0 | X127: =VLOOKUP(D127,Paramètres!$A$15:$E$26,5) -> 1 | Y127: =W127*(1-X127)+(W127*X127*Paramètres!$D$3/VLOOKUP(Encodage!A127,Paramètres!$A$2:$D$15,4)) ->  | AB127: =VLOOKUP(D127,Paramètres!$A$15:$D$26,2) -> 0 | AC127: =AA127/AA$22 -> 
A128: 2020 | B128: Batiment 9 | C128: 0 | D128: A sélectionner dans la liste déroulante | E128: 0 | I128: à encoder | J128: à encoder | R128: 0 | S128: 0 | T128: 0 | V128: =VLOOKUP(D128,Paramètres!$A$15:$D$26,3) -> 0 | W128: =K128*Paramètres!$H$3+L128*Paramètres!$H$4+Encodage!M128*Paramètres!$H$5+Encodage!N128*Paramètres!$H$6+Encodage!O128*Paramètres!$H$7+P128*Paramètres!$H$8 -> 0 | X128: =VLOOKUP(D128,Paramètres!$A$15:$E$26,5) -> 1 | Y128: =W128*(1-X128)+(W128*X128*Paramètres!$D$3/VLOOKUP(Encodage!A128,Paramètres!$A$2:$D$15,4)) ->  | AB128: =VLOOKUP(D128,Paramètres!$A$15:$D$26,2) -> 0 | AC128: =AA128/AA$23 -> 
A129: 2020 | B129: Batiment 10 | C129: 0 | D129: A sélectionner dans la liste déroulante | E129: 0 | I129: à encoder | J129: à encoder | R129: 0 | S129: 0 | T129: 0 | V129: =VLOOKUP(D129,Paramètres!$A$15:$D$26,3) -> 0 | W129: =K129*Paramètres!$H$3+L129*Paramètres!$H$4+Encodage!M129*Paramètres!$H$5+Encodage!N129*Paramètres!$H$6+Encodage!O129*Paramètres!$H$7+P129*Paramètres!$H$8 -> 0 | X129: =VLOOKUP(D129,Paramètres!$A$15:$E$26,5) -> 1 | Y129: =W129*(1-X129)+(W129*X129*Paramètres!$D$3/VLOOKUP(Encodage!A129,Paramètres!$A$2:$D$15,4)) ->  | AB129: =VLOOKUP(D129,Paramètres!$A$15:$D$26,2) -> 0 | AC129: =AA129/AA$24 -> 
A130: 2020 | B130: Batiment 11 | C130: 0 | D130: A sélectionner dans la liste déroulante | E130: 0 | I130: à encoder | J130: à encoder | R130: 0 | S130: 0 | T130: 0 | V130: =VLOOKUP(D130,Paramètres!$A$15:$D$26,3) -> 0 | W130: =K130*Paramètres!$H$3+L130*Paramètres!$H$4+Encodage!M130*Paramètres!$H$5+Encodage!N130*Paramètres!$H$6+Encodage!O130*Paramètres!$H$7+P130*Paramètres!$H$8 -> 0 | X130: =VLOOKUP(D130,Paramètres!$A$15:$E$26,5) -> 1 | Y130: =W130*(1-X130)+(W130*X130*Paramètres!$D$3/VLOOKUP(Encodage!A130,Paramètres!$A$2:$D$15,4)) ->  | AB130: =VLOOKUP(D130,Paramètres!$A$15:$D$26,2) -> 0 | AC130: =AA130/AA$25 -> 
A131: 2020 | B131: Batiment 12 | C131: 0 | D131: A sélectionner dans la liste déroulante | E131: 0 | I131: à encoder | J131: à encoder | R131: 0 | S131: 0 | T131: 0 | V131: =VLOOKUP(D131,Paramètres!$A$15:$D$26,3) -> 0 | W131: =K131*Paramètres!$H$3+L131*Paramètres!$H$4+Encodage!M131*Paramètres!$H$5+Encodage!N131*Paramètres!$H$6+Encodage!O131*Paramètres!$H$7+P131*Paramètres!$H$8 -> 0 | X131: =VLOOKUP(D131,Paramètres!$A$15:$E$26,5) -> 1 | Y131: =W131*(1-X131)+(W131*X131*Paramètres!$D$3/VLOOKUP(Encodage!A131,Paramètres!$A$2:$D$15,4)) ->  | AB131: =VLOOKUP(D131,Paramètres!$A$15:$D$26,2) -> 0 | AC131: =AA131/AA$26 -> 
A132: 2020 | B132: Total | C132: =SUM(C120:C131) -> 0 | F132: =SUM(F120:F131) -> 0 | G132: =SUM(G120:G131) -> 0 | H132: =SUM(H120:H131) -> 0 | K132: =SUM(K120:K131) -> 0 | L132: 0 | M132: 0 | N132: 0 | O132: 0 | P132: 0 | Q132: 0 | S132: =SUM(S120:S131) -> 0 | V132: =VLOOKUP($D$5,Paramètres!$A$15:$D$26,3) ->  | W132: =SUM(W120:W131) -> 0 | Y132: =SUM(Y120:Y131) ->  | AB132: =VLOOKUP($D$5,Paramètres!$A$15:$D$26,2) ->  | AC132: =AA132/AA$27 -> 

Sheet Resumé
A1: Evolution des consommations totales de tous les bâtiments
B3: =Encodage!D3 -> 2013 | C3: =B3+1 -> 2014 | D3: 2015 | E3: 2016 | F3: 2017 | G3: 2018 | H3: 2019 | I3: 2020
A4: =JBV!A2 -> Elec Tot | B4: =HLOOKUP(B$3,JBV!$B$1:$I$12,2) -> 0 | C4: =HLOOKUP(C$3,JBV!$B$1:$I$12,2) -> 0 | D4: =HLOOKUP(D$3,JBV!$B$1:$I$12,2) -> 0 | E4: =HLOOKUP(E$3,JBV!$B$1:$I$12,2) -> 0 | F4: =HLOOKUP(F$3,JBV!$B$1:$I$12,2) -> 0 | G4: =HLOOKUP(G$3,JBV!$B$1:$I$12,2) -> 0 | H4: =HLOOKUP(H$3,JBV!$B$1:$I$12,2) -> 0 | I4: =HLOOKUP(I$3,JBV!$B$1:$I$12,2) -> 0
A5: =JBV!A3 -> Elec heures pleines | B5: =HLOOKUP(B$3,JBV!$B$1:$I$12,3) -> 0 | C5: =HLOOKUP(C$3,JBV!$B$1:$I$12,3) -> 0 | D5: =HLOOKUP(D$3,JBV!$B$1:$I$12,3) -> 0 | E5: =HLOOKUP(E$3,JBV!$B$1:$I$12,3) -> 0 | F5: =HLOOKUP(F$3,JBV!$B$1:$I$12,3) -> 0 | G5: =HLOOKUP(G$3,JBV!$B$1:$I$12,3) -> 0 | H5: =HLOOKUP(H$3,JBV!$B$1:$I$12,3) -> 0 | I5: =HLOOKUP(I$3,JBV!$B$1:$I$12,3) -> 0
A6: =JBV!A4 -> Elec heures creuses | B6: =HLOOKUP(B$3,JBV!$B$1:$I$12,4) -> 0 | C6: =HLOOKUP(C$3,JBV!$B$1:$I$12,4) -> 0 | D6: =HLOOKUP(D$3,JBV!$B$1:$I$12,4) -> 0 | E6: =HLOOKUP(E$3,JBV!$B$1:$I$12,4) -> 0 | F6: =HLOOKUP(F$3,JBV!$B$1:$I$12,4) -> 0 | G6: =HLOOKUP(G$3,JBV!$B$1:$I$12,4) -> 0 | H6: =HLOOKUP(H$3,JBV!$B$1:$I$12,4) -> 0 | I6: =HLOOKUP(I$3,JBV!$B$1:$I$12,4) -> 0
A7: =JBV!A5 -> Consommation élect spécifique | B7: =HLOOKUP(B$3,JBV!$B$1:$I$12,5) ->  | C7: =HLOOKUP(C$3,JBV!$B$1:$I$12,5) ->  | D7: =HLOOKUP(D$3,JBV!$B$1:$I$12,5) ->  | E7: =HLOOKUP(E$3,JBV!$B$1:$I$12,5) ->  | F7: =HLOOKUP(F$3,JBV!$B$1:$I$12,5) ->  | G7: =HLOOKUP(G$3,JBV!$B$1:$I$12,5) ->  | H7: =HLOOKUP(H$3,JBV!$B$1:$I$12,5) ->  | I7: =HLOOKUP(I$3,JBV!$B$1:$I$12,5) -> 
A8: =JBV!A6 ->  | B8: =HLOOKUP(B$3,JBV!$B$1:$I$12,6) ->  | C8: =HLOOKUP(C$3,JBV!$B$1:$I$12,6) ->  | D8: =HLOOKUP(D$3,JBV!$B$1:$I$12,6) ->  | E8: =HLOOKUP(E$3,JBV!$B$1:$I$12,6) ->  | F8: =HLOOKUP(F$3,JBV!$B$1:$I$12,6) ->  | G8: =HLOOKUP(G$3,JBV!$B$1:$I$12,6) ->  | H8: =HLOOKUP(H$3,JBV!$B$1:$I$12,6) ->  | I8: =HLOOKUP(I$3,JBV!$B$1:$I$12,6) -> 
A9: =JBV!A7 -> Consommation de combustibles | B9: =HLOOKUP(B$3,JBV!$B$1:$I$12,7) -> 0 | C9: =HLOOKUP(C$3,JBV!$B$1:$I$12,7) -> 0 | D9: =HLOOKUP(D$3,JBV!$B$1:$I$12,7) -> 0 | E9: =HLOOKUP(E$3,JBV!$B$1:$I$12,7) -> 0 | F9: =HLOOKUP(F$3,JBV!$B$1:$I$12,7) -> 0 | G9: =HLOOKUP(G$3,JBV!$B$1:$I$12,7) -> 0 | H9: =HLOOKUP(H$3,JBV!$B$1:$I$12,7) -> 0 | I9: =HLOOKUP(I$3,JBV!$B$1:$I$12,7) -> 0
A10: =JBV!A8 -> Consommation de combustible normalisé | B10: =HLOOKUP(B$3,JBV!$B$1:$I$12,8) -> 0 | C10: =HLOOKUP(C$3,JBV!$B$1:$I$12,8) -> 0 | D10: =HLOOKUP(D$3,JBV!$B$1:$I$12,8) ->  | E10: =HLOOKUP(E$3,JBV!$B$1:$I$12,8) ->  | F10: =HLOOKUP(F$3,JBV!$B$1:$I$12,8) ->  | G10: =HLOOKUP(G$3,JBV!$B$1:$I$12,8) ->  | H10: =HLOOKUP(H$3,JBV!$B$1:$I$12,8) ->  | I10: =HLOOKUP(I$3,JBV!$B$1:$I$12,8) -> 
A11: =JBV!A9 -> Consommation combustible spécifique normalisée | B11: =HLOOKUP(B$3,JBV!$B$1:$I$12,9) ->  | C11: =HLOOKUP(C$3,JBV!$B$1:$I$12,9) ->  | D11: =HLOOKUP(D$3,JBV!$B$1:$I$12,9) ->  | E11: =HLOOKUP(E$3,JBV!$B$1:$I$12,9) ->  | F11: =HLOOKUP(F$3,JBV!$B$1:$I$12,9) ->  | G11: =HLOOKUP(G$3,JBV!$B$1:$I$12,9) ->  | H11: =HLOOKUP(H$3,JBV!$B$1:$I$12,9) ->  | I11: =HLOOKUP(I$3,JBV!$B$1:$I$12,9) -> 
A12: =JBV!A10 ->  | B12: =HLOOKUP(B$3,JBV!$B$1:$I$12,10) ->  | C12: =HLOOKUP(C$3,JBV!$B$1:$I$12,10) ->  | D12: =HLOOKUP(D$3,JBV!$B$1:$I$12,10) ->  | E12: =HLOOKUP(E$3,JBV!$B$1:$I$12,10) ->  | F12: =HLOOKUP(F$3,JBV!$B$1:$I$12,10) ->  | G12: =HLOOKUP(G$3,JBV!$B$1:$I$12,10) ->  | H12: =HLOOKUP(H$3,JBV!$B$1:$I$12,10) ->  | I12: =HLOOKUP(I$3,JBV!$B$1:$I$12,10) -> 
A13: =JBV!A11 -> Degrés jours16,5/16,5 | B13: =HLOOKUP(B$3,JBV!$B$1:$I$12,11) -> 2537 | C13: =HLOOKUP(C$3,JBV!$B$1:$I$12,11) -> 1828 | D13: =HLOOKUP(D$3,JBV!$B$1:$I$12,11) -> 0 | E13: =HLOOKUP(E$3,JBV!$B$1:$I$12,11) -> 0 | F13: =HLOOKUP(F$3,JBV!$B$1:$I$12,11) -> 0 | G13: =HLOOKUP(G$3,JBV!$B$1:$I$12,11) -> 0 | H13: =HLOOKUP(H$3,JBV!$B$1:$I$12,11) -> 0 | I13: =HLOOKUP(I$3,JBV!$B$1:$I$12,11) -> 0
A14: =JBV!A12 -> Eau en m³ | B14: =HLOOKUP(B$3,JBV!$B$1:$I$12,12) -> 0 | C14: =HLOOKUP(C$3,JBV!$B$1:$I$12,12) -> 0 | D14: =HLOOKUP(D$3,JBV!$B$1:$I$12,12) -> 0 | E14: =HLOOKUP(E$3,JBV!$B$1:$I$12,12) -> 0 | F14: =HLOOKUP(F$3,JBV!$B$1:$I$12,12) -> 0 | G14: =HLOOKUP(G$3,JBV!$B$1:$I$12,12) -> 0 | H14: =HLOOKUP(H$3,JBV!$B$1:$I$12,12) -> 0 | I14: =HLOOKUP(I$3,JBV!$B$1:$I$12,12) -> 0
A16: Evolution par rapport à l’année du 1er encodage | B16: =B3 -> 2013 | C16: 2014 | D16: 2015 | E16: 2016 | F16: 2017 | G16: 2018 | H16: 2019 | I16: 2020
A17: =A4 -> Elec Tot | B17: =B4/$B4 ->  | C17: =C4/$B4 -> 
A18: =A5 -> Elec heures pleines | B18: =IFERROR(B5/$B5,"NA") -> NA | C18: =IFERROR(C5/$B5,"NA") -> NA | D18: NA | E18: NA | F18: NA | G18: NA | H18: NA | I18: NA
A19: Elec heures creuses | B19: =IFERROR(B6/$B6,"NA") -> NA | C19: NA | D19: NA | E19: NA | F19: NA | G19: NA | H19: NA | I19: NA
A20: =A9 -> Consommation de combustibles | B20: =B9/$B9 -> 
A21: =A10 -> Consommation de combustible normalisé
A22: =A11 -> Consommation combustible spécifique normalisée | B22: =B10/$B10 -> 
A23: =A13 -> Degrés jours16,5/16,5 | B23: =B13/$B13 -> 1 | C23: 0.7205360662 | D23: 0 | E23: 0 | F23: 0 | G23: 0 | H23: 0 | I23: 0
A24: =A14 -> Eau en m³ | B24: =IFERROR(B14/$B14,"NA") -> NA | C24: =IFERROR(C14/$B14,"NA") -> NA | D24: NA | E24: NA | F24: NA | G24: NA | H24: NA | I24: NA
A26: Evolution par rapport à l'année précédente | B26: =B16 -> 2013 | C26: 2014 | D26: 2015 | E26: 2016 | F26: 2017 | G26: 2018 | H26: 2019 | I26: 2020
A27: =A17 -> Elec Tot | C27: =IF(C17=0,0,C17/B17-1) ->  | D27: =IF(D17=0,0,D17/C17-1) -> 
A28: =A18 -> Elec heures pleines | C28: =IFERROR(C18/B18-1,"NA") -> NA | D28: =IFERROR(D18/C18-1,"NA") -> NA | E28: NA | F28: NA | G28: NA | H28: NA | I28: NA
A29: =A19 -> Elec heures creuses | C29: =IFERROR(C19/B19-1,"NA") -> NA | D29: =IFERROR(D19/C19-1,"NA") -> NA | E29: NA | F29: NA | G29: NA | H29: NA | I29: NA
A30: =A20 -> Consommation de combustibles | C30: =IF(C20=0,0,C20/B20-1) ->  | D30: =IF(D20=0,0,D20/C20-1) -> 
A31: =A21 -> Consommation de combustible normalisé | C31: =IF(C21=0,0,C21/B21-1) ->  | D31: =IF(D21=0,0,D21/C21-1) -> 
A32: =JBV!A9 -> Consommation combustible spécifique normalisée | C32: =IF(C22=0,0,C22/B22-1) ->  | D32: =IF(D22=0,0,D22/C22-1) -> 
A33: =JBV!A11 -> Degrés jours16,5/16,5 | C33: =IF(C23=0,0,1-C23/B23) -> 0.2794639338 | D33: 0 | E33: 0 | F33: 0 | G33: 0 | H33: 0 | I33: 0
A34: =JBV!A12 -> Eau en m³ | C34: =IFERROR(C24/B24-1,"NA") -> NA | D34: =IFERROR(D24/C24-1,"NA") -> NA | E34: NA | F34: NA | G34: NA | H34: NA | I34: NA

Sheet G_Elec
A82: Consommation d'élec par bâtiment | G82: =$A$105 -> Consommation d'élec par bâtiment | L82: =$A$105 -> Consommation d'élec par bâtiment | Q82: =$A$105 -> Consommation d'élec par bâtiment
A83: =Encodage!A13 -> 2013 | G83: =Encodage!A29 -> 2014 | L83: =Encodage!A44 -> 2015 | Q83: =Encodage!A59 -> 2016
A105: Consommation d'élec par bâtiment | G105: =$A$105 -> Consommation d'élec par bâtiment | L105: =$A$105 -> Consommation d'élec par bâtiment | Q105: =$A$105 -> Consommation d'élec par bâtiment
A106: =Encodage!A74 -> 2017 | G106: =Encodage!A89 -> 2018 | L106: =Encodage!A104 -> 2019 | Q106: =Encodage!A119 -> 2020

Sheet G_Combustible

Sheet G_Eau

Sheet Paramètres
A1: Degrés jours | F1: Coefficients de conversion: | K1: Usage énergétique
B2: 15/15 | C2: 16,5/16,5 | D2: =IF(Encodage!$D$4=$B$2,B2,C2) -> 16,5/16,5 | F2: Electricité | G2: kWh | H2: 2.5 | I2: ="kWhp"&"/"&G2 -> kWhp/kWh | K2: Chauffage
A3: réf | B3: 1913 | C3: 2344 | D3: =IF(Encodage!$D$4=$B$2,B3,C3) -> 2344 | F3: gaz naturel | G3: kWh | H3: 0.903 | I3: kWhp/kWh | K3: Eau chaude sanitaire (ECS)
A4: 2009 | B4: 1819.7 | C4: 2212 | D4: =IF(Encodage!$D$4=$B$2,B4,C4) -> 2212 | F4: gasoil | G4: litre | H4: =36500/3600 -> 10.13888889 | I4: kWhp/litre | K4: Cuisine
A5: 2010 | B5: 2309 | C5: 2703 | D5: =IF(Encodage!$D$4=$B$2,B5,C5) -> 2703 | F5: propane | G5: m³ | H5: 6.555555556 | I5: kWhp/m³ | K5: Ch + ECS
A6: 2011 | B6: 1514.5 | C6: 1928 | D6: =IF(Encodage!$D$4=$B$2,B6,C6) -> 1928 | F6: colza | G6: litre | H6: 10.74444444 | I6: kWhp/litre | K6: Ch + cuisine
A7: 2012 | B7: 1914.7 | C7: 2327 | D7: =IF(Encodage!$D$4=$B$2,B7,C7) -> 2327 | F7: pellets | G7: kg | H7: 4 | I7: kWhp/kg | K7: ECS + Cuisine
A8: 2013 | B8: 2137.7 | C8: 2537 | D8: =IF(Encodage!$D$4=$B$2,B8,C8) -> 2537 | F8: Autres | G8: kWh | H8: 1 | I8: kWhp/kWh | K8: Ch + ECS + Cuisine
A9: 2014 | B9: 1424.1 | C9: 1828 | D9: =IF(Encodage!$D$4=$B$2,B9,C9) -> 1828 | K9: cuisine collective
A10: 2015 | D10: =IF(Encodage!$D$4=$B$2,B10,C10) -> 0 | K10: air-conditionné
A11: 2016 | D11: =IF(Encodage!$D$4=$B$2,B11,C11) -> 0 | K11: chauffage électrique
K12: piscine
A13: Consommation moyenne du secteur
B14: Chauffage | C14: Elec | E14: Rapport Normalisation
A15: A sélectionner dans la liste déroulante | B15: 0 | C15: 0 | D15: kWh/m² | E15: 1
A16: Accueil de jour | B16: 0 | C16: 0 | D16: kWh/m² | E16: 1
A17: Bureau | B17: 0 | C17: 0 | D17: kWh/m² | E17: 1
A18: Centre d’insertion socio-professionnel | B18: 0 | C18: 0 | D18: kWh/m² | E18: 1
A19: Crèche | B19: 0 | C19: 0 | D19: kWh/m² | E19: 1
A20: École | B20: 0 | C20: 0 | D20: kWh/m² | E20: 1
A21: Entreprise de travail adapté | B21: 0 | C21: 0 | D21: kWh/m² | E21: 1
A22: Etablissement culturel | B22: 0 | C22: 0 | D22: kWh/m² | E22: 1
A23: Etablissement sportif | B23: 0 | C23: 0 | D23: kWh/m² | E23: 1
A24: Hébergement | B24: 0 | C24: 0 | D24: kWh/m² | E24: 0.85
A25: Hôpitaux | B25: 0 | C25: 0 | D25: kWh/m² | E25: 0.85
A26: autre | B26: 0 | C26: 0 | D26: kWh/m² | E26: 1
A28: Energies renouvelables
A29: A sélectionner dans la liste déroulante
A30: o Biomasse sèche
A31: o Biomasse humide
A32: o Cogénération Biomasse
A33: o Solaire photovoltaïque
A34: o Solaire thermique
A35: o Eolien
A36: o Hydroélectricité
A37: o Géothermie profonde comme utilisateur
A38: o Pompe à Chaleur
A43: Hébergement
A44: Accueil de jour
A45: Bureau
A46: Crèche
A47: École
A48: Etablissement sportif
A49: Etablissement culturel
A50: Entreprise de travail adapté
A51: Centre d’insertion socio-professionnel
A52: autre

Sheet JBV (hidden)
B1: =Encodage!A27 -> 2013 | C1: =Encodage!A42 -> 2014 | D1: =Encodage!A57 -> 2015 | E1: =D1+1 -> 2016 | F1: =E1+1 -> 2017 | G1: =F1+1 -> 2018 | H1: =G1+1 -> 2019 | I1: =H1+1 -> 2020
A2: Elec Tot | B2: =Encodage!$S27 -> 0 | C2: =Encodage!S42 -> 0 | D2: =Encodage!S57 -> 0 | E2: =Encodage!$S72 -> 0 | F2: =Encodage!$S87 -> 0 | G2: =Encodage!$S102 -> 0 | H2: =Encodage!$S117 -> 0 | I2: =Encodage!$S132 -> 0
A3: Elec heures pleines | B3: =Encodage!$G27 -> 0 | C3: =Encodage!G42 -> 0 | D3: =Encodage!G57 -> 0 | E3: =Encodage!$G72 -> 0 | F3: =Encodage!$G87 -> 0 | G3: =Encodage!$G102 -> 0 | H3: =Encodage!$G117 -> 0 | I3: =Encodage!$G132 -> 0
A4: Elec heures creuses | B4: =Encodage!$H27 -> 0 | C4: =Encodage!H42 -> 0 | D4: =Encodage!H57 -> 0 | E4: =Encodage!$H72 -> 0 | F4: =Encodage!$H87 -> 0 | G4: =Encodage!$H102 -> 0 | H4: =Encodage!$H117 -> 0 | I4: =Encodage!$H132 -> 0
A5: Consommation élect spécifique | B5: =Encodage!$U27 ->  | C5: =Encodage!U42 ->  | D5: =Encodage!U57 ->  | E5: =Encodage!$U72 ->  | F5: =Encodage!$U87 ->  | G5: =Encodage!$U102 ->  | H5: =Encodage!$U117 ->  | I5: =Encodage!$U132 -> 
A6: ="Consommation moyenne du secteur = "&B6&" kWh/m²" ->  | B6: =VLOOKUP(Encodage!D5,Paramètres!$A$15:$D$26,3) ->  | C6: =$B$6 ->  | D6: =$B$6 -> 
A7: Consommation de combustibles | B7: =Encodage!$W27 -> 0 | C7: =Encodage!W42 -> 0 | D7: =Encodage!W57 -> 0 | E7: =Encodage!$W72 -> 0 | F7: =Encodage!$W87 -> 0 | G7: =Encodage!$W102 -> 0 | H7: =Encodage!$W117 -> 0 | I7: =Encodage!$W132 -> 0
A8: Consommation de combustible normalisé | B8: =Encodage!$Y27 -> 0 | C8: =Encodage!$Y42 -> 0 | D8: =Encodage!$Y57 ->  | E8: =Encodage!$Y72 ->  | F8: =Encodage!$Y87 ->  | G8: =Encodage!$Y102 ->  | H8: =Encodage!$Y117 ->  | I8: =Encodage!$Y132 -> 
A9: Consommation combustible spécifique normalisée | B9: =Encodage!$AA27 ->  | C9: =Encodage!AA42 ->  | D9: =Encodage!AA57 ->  | E9: =Encodage!$AA72 ->  | F9: =Encodage!$AA87 ->  | G9: =Encodage!$AA102 ->  | H9: =Encodage!$AA117 ->  | I9: =Encodage!$AA132 -> 
A10: ="Consommation moyenne du secteur = "&B10&" kWh/m²" ->  | B10: =VLOOKUP(Encodage!D5,Paramètres!$A$15:$D$26,2) ->  | C10: =$B$10 ->  | D10: =$B$10 -> 
A11: =Paramètres!A1&Paramètres!D2 -> Degrés jours16,5/16,5 | B11: =VLOOKUP(B1,Paramètres!$A$4:$D$15,4) -> 2537 | C11: =VLOOKUP(C1,Paramètres!$A$4:$D$15,4) -> 1828 | D11: =VLOOKUP(D1,Paramètres!$A$4:$D$15,4) -> 0 | E11: =VLOOKUP(E1,Paramètres!$A$4:$D$15,4) -> 0 | F11: =VLOOKUP(F1,Paramètres!$A$4:$D$15,4) -> 0 | G11: =VLOOKUP(G1,Paramètres!$A$4:$D$15,4) -> 0 | H11: =VLOOKUP(H1,Paramètres!$A$4:$D$15,4) -> 0 | I11: =VLOOKUP(I1,Paramètres!$A$4:$D$15,4) -> 0
A12: Eau en m³ | B12: =Encodage!$Q27 -> 0 | C12: =Encodage!Q42 -> 0 | D12: =Encodage!Q57 -> 0 | E12: =Encodage!$Q72 -> 0 | F12: =Encodage!$Q87 -> 0 | G12: =Encodage!$Q102 -> 0 | H12: =Encodage!$Q117 -> 0 | I12: =Encodage!$Q132 -> 0
